Workbook

Sheet Cover Page
D1: Add company logo
N2: Version 23.4a (for incinerators) - 15/11/2023
N4: Note that there is another version of this template available for co-incinerators
B8: Add photo
N13: Notes:
N14: This template may require adjustments by individual operators to meet specific reporting requirements as defined in the site Permit(s)
B29: Annual Performance Report 2023
B31: Permit EPR/EP3034SN
B33: Eastcroft Energy from Waste Plant
B37: WasteNotts (Reclamation) Limited
B39: Year: | C39: 2023
B41: Address: | C41: Incinerator Road, Off Cattle Market Road, Nottingham NG23JH
B43: Tel: | C43: 0115 9869505
B45: Email: | C45: leigh.hornsby@fccenvironment.co.uk
B47: Prepared by: | C47: Leigh Hornsby | F47: Position: | G47: Environment Manager
B49: Approved by: | C49: Ashley Corke | F49: Position: | G49: General Manager
B51: Version: | C51: 1
B53: Issue Date: | C53: 2024-01-31

Sheet Contents
A1: =+'Cover Page'!$B$29 -> Annual Performance Report 2023 | E1: =+'Cover Page'!$B$33 -> Eastcroft Energy from Waste Plant
A3: Contents | K3: Notes:
A4: Section | B4: Subject | H4: Page | K4: Section references and Page nos. to be inserted
B5: Facility Information | K5: Sections and Subjects may require adjustment by individual operators to meet specific reporting requirements as defined in the sites Permit(s)
B6: Operational Data
B7: Operational Summary
B8: Performance Form 1
B9: Energy Form 1
B10: Permit Compliance
B11: Improvements
B12: Public Liasion
B13: Carbon dioxide and nitrous oxide emissions
B14: Residue Quality
B15: Emissions to Water
B16: Emissions to Air (periodically monitored)
B17: Emissions to Air (continuously monitored)
B18: Hydrogen Chloride emissions
B19: Sulphur Dioxdie emsissions
B20: Oxides of Notrigen emissions
B21: Total Organic Carbon emissions
B22: Particulate Matter emissions
B23: Carbon Monoxide emissions
B24: Ammonia emissions
A27: Version Control
A28: Section | B28: Information | H28: Date
A35: Distribution
A36: Copy | B36: Name, Role | H36: No.
A45: This report is required under the Industrial Emissions Directive’s Article 55(2) requirements on reporting and public information on waste incineration plants and co-incineration plants, which require the operator to produce an annual report on the functioning and monitoring of the plant and make it available to the public.

Sheet Facility Info
A1: =+'Cover Page'!$B$29 -> Annual Performance Report 2023 | E1: =+'Cover Page'!$B$33 -> Eastcroft Energy from Waste Plant
A3: Plant Description and Design | K3: Notes:
A5: The EfW facility currently comprises two incineration streams each capable of burning up to 11.7 tonnes/hour of municipal and light commercial and industrial waste. The plant has a theoretical capacity of just over 200,000 tonnes per annum; however with planned maintenance the annual throughput is approximately 185,000 tonnes. The site has planning permission to add a third line to the plant which is included in the scope of the Environmental Permit (EP3034SN) but has yet to be developed. The facility generates around 50 tonnes of steam per hour with no electrical generation undertaken at the Eastcroft facility. Steam is exported to a third party (Nottingham City Council, formerly EnviroEnergy) who operate a combined heat and power facility providing electricity and feeding into Nottingham's district heating network. | K5: Include summary of plant design, design capacity, no. of combustion lines, electrical and heat capacity and any other general information that descibes the facility, its location and purpose
A20: Summary of Operational Processes and Procedures
A22: Municipal waste and non-hazardous commercial/industrial/trade waste is delivered to site by lorry and tipped into one of two refuse bunkers inside the tipping hall. Deliveries are typically made from Monday to Saturday morning. Waste is transferred from the bunkers by grab crane into the feed chute of each incinerator stream. Waste is only fed to the incinerator if the temperature is above 850°C. Each incinerator stream has a moving grate on which the waste is burned, with preheated air being injected from below the grate. Combustion air is drawn from the tipping hall and boiler hall to reduce odours and dust levels in these areas and fed to the furnace via an air preheater which can raise the temperature of the air up to 160°C. Two auxiliary burners, fired on gas oil, are installed halfway up each combustion chamber to maintain temperatures above the 850°C threshold. The auxiliary burners are also used to pre-heat the incinerators before start up. Ammonium hydroxide is injected into the furnaces to reduce emissions of nitrogen oxides (this technique is known as selective non-catalytic reduction or SNCR). Hot gases from the combustion chamber pass to a boiler in which steam is raised and sent to the London Road Heat Station (operated by Nottingham City Council, formerly EnviroEnergy) for supply of heat to the district heating system and generation of electricity. Flue gases leaving the boiler are cooled to about 130°C in the economiser to achieve the correct temperature for gas treatment. Incinerator bottom ash is quenched in water and collected in a residuals bunker inside the building. The silo is emptied regularly and the bottom ash is sent for metal extraction and use as a substitute aggregate. Fly ash entrained within the incinerator exhaust gases, together with any accumulations of dust removed from the walls of the economiser by the shot cleaning system, is treated in the air pollution control equipment. Each incinerator stream has its own dedicated air pollution control equipment. Cooled flue gases leaving the economiser are dosed with a mixture of hydrated lime, activated carbon and recirculated reagent, in order to reduce acid gases (by reaction with the lime), and other substances such as heavy metals and hydrocarbons (by adsorption onto the activated carbon). The exhaust gases and reagent particles are then filtered in a four compartment fabric filter to remove the dust burden. The fabric filters are regularly cleaned by reverse jet pulses, and the collected end product is stored in the APC residue silo. The APC residue silo is regularly emptied and the residue used to treat industrial acidic wastes before final disposal in a suitably licensed landfill site. The treated exhaust gases from both streams are discharged via the 91m high stack. The final emissions from the municipal waste incinerator are continuously monitored for particulate matter, sulphur dioxide, nitrogen oxides, carbon monoxide, hydrogen chloride, volatile organic compounds, nitrous oxide, carbon dioxide and ammonia prior to entry into the main stack. | K22: Include summary of key processes and procedures such as (but not limited to); waste reception, control rooms, grate, bed and bolier, energy & heat generation, cooling systems, residue management, emission controls, health and safety systems, maintenance

Sheet Operational Data
A1: =+'Cover Page'!$B$29 -> Annual Performance Report 2023 | E1: =+'Cover Page'!$B$33 -> Eastcroft Energy from Waste Plant
A3: Operational Data
A4: Plant Size | D4: tonnes pa | F4: MWth | H4: MWe | J4: Notes:
A5: No. of combustion lines | B5: 1 | D5: No. of Turbines: | F5: 1 | J5: * - RDF to include SRF
J6: ** - Combusted tonnage = tonnes delivered in period + (tonnes in bunker at start of period – tonnes in bunker at end of period), or equivalent calculation depending on plant type
A7: Waste types received | B7: Unit | C7: Q1 | D7: Q2 | E7: Q3 | F7: Q4 | G7: Year Total | H7: %
A8: Household / Local Authority | B8: tonnes | C8: 44779.24 | D8: 36317.6 | E8: 37939.46 | F8: 45591.36 | G8: =SUM(C8:F8) -> 164627.66 | H8: =IF(G8>0,G8/$G$18,"-") -> 0.8885013458
A9: Commercial & Industrial | C9: 6078.58 | D9: 4755.3 | E9: 4792.68 | F9: 5032.68 | G9: =SUM(C9:F9) -> 20659.24 | H9: 0.1114986542 | J9: *** - CHP plants only
A10: Hazardous | G10: 0 | H10: - | J10: **** Availability Definition: 'the availability of a line is to be calculated by the number of hours the line reported Continuously Monitored emission levels to the Regulator through the calendar year divided by the total number of hours in that year. The overall plant availability is calculated as the Mean of all lines in the plant. For clarity this includes periods of abnormal operation.' Rationale: The primary function of an Energy from Waste facility is the disposal of waste. It follows therefore that the availability of a plant is determined by the period of time a facility spends undertaking this activity.
A11: Clinical | G11: 0 | H11: -
A12: Waste wood (biomass) | G12: 0 | H12: -
A13: Refuse Derived Fuel * - H'hold/LA | G13: =SUM(C13:F13) -> 0 | H13: -
A14: Refuse Derived Fuel * - C&I | G14: 0 | H14: -
A15: Other [Please specify] | G15: 0 | H15: -
A16: Other [Please specify] | G16: 0 | H16: -
A17: Other [Please specify] | G17: 0 | H17: -
A18: Total waste received | C18: =SUM(C8:C17) -> 50857.82 | D18: =SUM(D8:D17) -> 41072.9 | E18: =SUM(E8:E17) -> 42732.14 | F18: =SUM(F8:F17) -> 50624.04 | G18: 185286.9
A19: Rejected Waste | G19: =SUM(C19:F19) -> 0 | H19: =IF(G19>0,G19/$G$18,"-") -> -
A20: Unprocessed waste transferred out | G20: =SUM(C20:F20) -> 0 | H20: =IF(G20>0,G20/$G$18,"-") -> -
A21: Total waste combusted ** | C21: 50364 | D21: 41534 | E21: 43196 | F21: 50676 | G21: =SUM(C21:F21) -> 185770
J22: Password for protected cells A password has been set to prevent accidental editing of cells with formulae. If you still need to make an edit for some reason then the password = 1234
A23: Energy Usage / Export | B23: Unit | C23: Q1 | D23: Q2 | E23: Q3 | F23: Q4 | G23: Year Total | H23: KWh/te
A24: Power Generated | B24: MWh | G24: =SUM(C24:F24) -> 0 | H24: =IF(G24>0,G24*1000/$G$21,"-") -> -
A25: Power Exported | G25: =SUM(C25:F25) -> 0 | H25: =IF(G25>0,G25*1000/$G$21,"-") -> -
A26: Power Used on site | C26: 2607.73 | D26: 2160.584 | E26: 2252.862 | F26: 2883.551 | G26: =SUM(C26:F26) -> 9904.727 | H26: =IF(G26>0,G26*1000/$G$21,"-") -> 53.31715024
A27: Power Imported | C27: 2607.73 | D27: 2160.584 | E27: 2252.862 | F27: 2883.551 | G27: 9904.727 | H27: =IF(G27>0,G27*1000/$G$21,"-") -> 53.31715024
A28: Parasitic Load | B28: % | C28: =IF(C24>0,1-C25/(C24+C27),"-") -> - | D28: =IF(D24>0,1-D25/(D24+D27),"-") -> - | E28: =IF(E24>0,1-E25/(E24+E27),"-") -> - | F28: =IF(F24>0,1-F25/(F24+F27),"-") -> - | G28: =IF(G24>0,1-G25/(G24+G27),"-") -> -
A29: Thermal Energy Produced *** | B29: MWh | C29: 99232 | D29: 81928 | E29: 85056 | F29: 99863 | G29: =SUM(C29:F29) -> 366079 | H29: =IF(G29>0,G29*1000/$G$21,"-") -> 1970.603434
A30: Thermal Energy Exported *** | C30: 99232 | D30: 81928 | E30: 85056 | F30: 99863 | G30: 366079 | H30: =IF(G30>0,G30*1000/$G$21,"-") -> 1970.603434
A31: R1 value (if applicable) | B31: R1
A33: Waste Disposal & Recovery | B33: Unit | C33: Q1 | D33: Q2 | E33: Q3 | F33: Q4 | G33: Year Total | H33: % inputs
A34: APC Residues - produced | B34: tonnes | C34: 1209.3 | D34: 889.56 | E34: 947.34 | F34: 1292.1 | G34: =SUM(C34:F34) -> 4338.3 | H34: =IF(G34>0,G34/$G$21,"-") -> 0.023353071
A35: IBA - produced | C35: 9376.12 | D35: 8173.14 | E35: 8166.62 | F35: 9683.88 | G35: 35399.76 | H35: =IF(G35>0,G35/$G$21,"-") -> 0.1905569252
A36: Metals recycling | C36: 1368.911629 | D36: 1114.958315 | E36: 1169.519222 | F36: 1425.568239 | G36: =SUM(C36:F36) -> 5078.957405 | H36: 0.02734003017
A37: Other | C37: 0 | D37: 0 | E37: 0 | F37: 0 | G37: =SUM(C37:F37) -> 0 | H37: -
A38: Other | C38: 0 | D38: 0 | E38: 0 | F38: 0 | G38: 0 | H38: -
A39: Other | C39: 0 | D39: 0 | E39: 0 | F39: 0 | G39: 0 | H39: -
A41: Raw Material Usage | B41: Unit | C41: Q1 | D41: Q2 | E41: Q3 | F41: Q4 | G41: Year Total | H41: kg or Ltr /te
A42: Mains Water | B42: ltrs | C42: 2773 | D42: 3347 | E42: 5863 | F42: 4891 | G42: =SUM(C42:F42) -> 16874 | H42: =IF(G42>0,G42/$G$21,"-") -> 0.09083275017
A43: Other Water | B43: ltrs | C43: N/A | D43: N/A | E43: N/A | F43: N/A | G43: 0 | H43: =IF(G43>0,G43/$G$21,"-") -> -
A44: Ammonia | B44: kgs | C44: 130233 | D44: 109584 | E44: 100605 | F44: 128681 | G44: 469103 | H44: 2.525181676
A45: Urea | B45: kgs | C45: N/A | D45: N/A | E45: N/A | F45: N/A | G45: =SUM(C45:F45) -> 0 | H45: -
A46: Activated Carbon | B46: kgs | C46: 258840 | D46: 229800 | E46: 248160 | F46: 373440 | G46: 1110240 | H46: 5.976422458
A47: Lime / hydrated lime | B47: kgs | C47: 63661.81053 | D47: 44819.79703 | E47: 48146.72312 | F47: 61819.99249 | G47: 218448.3232 | H47: 1.175907429
A48: Fuel oil | B48: ltrs | C48: 17196 | D48: 19121 | E48: 56819 | F48: 45561 | G48: 138697 | H48: 0.7466060182
A49: Gas | B49: cuf | C49: N/A | D49: N/A | E49: N/A | F49: N/A | G49: 0
A50: Other | C50: N/A | D50: N/A | E50: N/A | F50: N/A | G50: 0
A52: Summary | B52: Line/Unit | C52: Q1 | D52: Q2 | E52: Q3 | F52: Q4 | G52: Year Total | I52: Hrs in year
A53: Availability of waste combustion by line, hrs **** | B53: =+B5 -> 1 | C53: 2129.5 | D53: 1758.17 | E53: 1820 | F53: 2145 | G53: =SUM(C53:F53) -> 7852.67 | H53: =+G53/$I$53 -> 0.896423516 | I53: 8760
B54: 2 | C54: 2108 | D54: 1767 | E54: 1885.2 | F54: 2184 | G54: 7944.2 | H54: =+G54/$I$53 -> 0.9068721461
B55: 3 | G55: 0 | H55: 0
B56: 4 | G56: 0 | H56: 0
B57: 5 | G57: =SUM(C57:F57) -> 0 | H57: 0
A58: Overall Availability, mean avg. of all lines, hrs | C58: 4237.5 | D58: 3525.17 | E58: 3705.2 | F58: 4329 | G58: =AVERAGE(G53:G54) -> 7898.435 | H58: 0.9016478311
A59: Hours of turbine operations, hrs | B59: 1 | G59: 0 | H59: 0
A60: Hours of turbine operations, hrs | B60: 2 | G60: 0 | H60: 0
A61: Hours of heat / steam export | C61: 4237.5 | D61: 3525.17 | E61: 3705.2 | F61: 4329 | G61: 15796.87 | H61: =IF(B61>0,G60/I53,"n/a") -> n/a
A62: Net Calorific Value of waste | B62: MJ/kg | C62: 8.5 | D62: 8.3 | E62: 7 | F62: 7.9
A63: Abnormal Events | B63: qty. | G63: 0 | H63: =IF(G63>0,"yes","no") -> no
A64: Abnormal operation | B64: hours | G64: 0 | H64: =+(G64)/I53 -> 0
A65: Permit Breaches | B65: qty. | D65: 2 | E65: 1 | F65: 6 | G65: 9 | H65: =IF(G65>0,"yes","no") -> yes

Sheet Operational Summary
A1: =+'Cover Page'!$B$29 -> Annual Performance Report 2023 | E1: =+'Cover Page'!$B$33 -> Eastcroft Energy from Waste Plant
A3: Summary of Plant Operations and Maintenance during the reporting year | K3: Notes:
A5: During 2023 the facility ran for 15,797 hours across the 2 lines representing an availability of 90.2% with 185,287 tonnes delivered to site compared to a permit limit of 200,000 tonnes per annum. Nearly all of this waste was delivered by the local authorities of Nottingham and the surrounding area and most other wastes being categorised as municipal (Chapter 20 of the List of Wastes Regulations). The facility submitted 9 schedule notification during the year. Gas cylinder explosions caused minor TOC exceedances two of which were in May, one in November and three in December. In August a brief spike of HCl caused an exceedance of 71.2 mg/Nm3 against a threshold of 60. In October an electrical fault cased the FGT bypass to open for six minutes and the FGT bypass was subsequently welded shut to prevent a reoccurrence. In December a brief spike of SO2 caused an exceedance of 233.8 mg/Nm3 against a threshold of 200. The plant provided 366 GWh of energy in the form of steam and hot water to the Nottingham City Council (formerly EnviroEnergy) facility who operate a combined heat and power station, providing electricity to private customers, the national grid and providing heating to households and commercial premises through their district heating system. Eastcroft receives all electrical supply and water for the process from the Nottingham City Council facility. The main period of downtime related to a planned maintenance period within where both routine maintenance that cannot be undertaken whilst the plant is operational took place including the replacement of a feeder table and clinker roller and superheater parts on both lines. Further modifications and optimisation to the combustion and other processes were undertaken throughout the year. | K5: Include summary of key operational and/or mainteanance activity undertaken in the year, such as any major component upgrades and/or replacements
A29: Summary of Residue Handling for the reporting year
A31: Incinerator Bottom Ash (IBA) is sampled 4 times per year for permit compliance purposes, in particular for Total Organic Content where the permit has a limit of 3%. Full compliance was achieved during 2023; no values were above 3% with an average value of 0.93% achieved. Additional testing of IBA is undertaken in order to correctly classify the IBA. 24 samples (2 per month) were taken in 2023 to assess for any hazardous content within the IBA. During 2023 all 24 sample results were returned confirming the classification of the IBA as non-hazardous. All metals within the IBA are sent along with the non-hazardous IBA to a third party company who operate a permitted facility dedicated to management of bottom ash. Metals are segregated and sent for recycling while the remaining incinerator bottom ash is used as a substitute aggregate material for use within the construction industry. Air Pollution Control Residues (APCr) formed from the cleaning of the flue gases are also analysed on a quarterly basis, albeit with no limits set within the permit. The APCr is tankered to a permitted treatment site where the material is used to neutralise highly acidic wastes before the resulting residue is sent for disposal. | K31: Include in here a summary of residue handling regimes and destinations

Sheet Perf. Form 1
A1: =+'Cover Page'!C39 -> 2023 | B1: Annual Reporting Performance Form 1
A3: =+'Cover Page'!B31 -> Permit EPR/EP3034SN | F3: Operator: | G3: Wastenotts (Reclamation) Limited
A4: Facility: | B4: =+'Cover Page'!B33:I33 -> Eastcroft Energy from Waste Plant | F4: Form: | G4: Performance 1
A6: Reporting Period from: | D6: 2023-01-01 | F6: to: | G6: 2023-12-31
A8: =+A1 -> 2023 | B8: Annual Reporting of Waste Disposal and Recovery
A9: Waste Description | C9: Disposal Route(s) | E9: Disposal Tonnes | G9: Recovery Tonnes | I9: % / tonne of waste incinerated
A10: 1) Hazardous Wastes
A11: APC Residues | C11: D3 | E11: 4338 | I11: =IF((E11+G11)>0,(E11+G11)/'Operational Data'!$G$21, "-") -> 0.0233514561
A12: IBA | I12: =IF((E12+G12)>0,(E12+G12)/'Operational Data'!$G$21, "-") -> -
I13: =IF((E13+G13)>0,(E13+G13)/'Operational Data'!$G$21, "-") -> -
I14: =IF((E14+G14)>0,(E14+G14)/'Operational Data'!$G$21, "-") -> -
A15: Total Hazardous Waste | E15: =SUM(E11:F14) -> 4338 | G15: =SUM(G11:H14) -> 0 | I15: =IF((E15+G15)>0,(E15+G15)/'Operational Data'!$G$21, "-") -> 0.0233514561
A17: 2) Non-Hazardous Wastes
A18: IBA | C18: R05 | G18: 35400 | I18: =IF((E18+G18)>0,(E18+G18)/'Operational Data'!$G$21, "-") -> 0.1905582172
A19: Ferrous Metal | I19: =IF((E19+G19)>0,(E19+G19)/'Operational Data'!$G$21, "-") -> -
A20: Process Water | I20: =IF((E20+G20)>0,(E20+G20)/'Operational Data'!$G$21, "-") -> -
I21: =IF((E21+G21)>0,(E21+G21)/'Operational Data'!$G$21, "-") -> -
I22: =IF((E22+G22)>0,(E22+G22)/'Operational Data'!$G$21, "-") -> -
A23: Total Non-Hazardous Waste | E23: =SUM(E18:F22) -> 0 | G23: =SUM(G18:H22) -> 35400 | I23: =IF((E23+G23)>0,(E23+G23)/'Operational Data'!$G$21, "-") -> 0.1905582172
A24: TOTAL WASTE | E24: =+E23+E15 -> 4338 | G24: =+G23+G15 -> 35400 | I24: =IF((E24+G24)>0,(E24+G24)/'Operational Data'!$G$21, "-") -> 0.2139096733
A26: Operator’s comments :
A31: =+A1 -> 2023 | B31: Annual Reporting of Water and Other Raw Material Usage
A32: Raw Material | E32: Usage | G32: Unit | H32: Specific Useage | J32: Unit
A33: Mains Water | E33: =+'Operational Data'!G42 -> 16874 | G33: m3 | H33: =IF(E33>0,E33/'Operational Data'!$G$21,"-") -> 0.09083275017 | J33: m3/te
A34: Total Water | E34: =+'Operational Data'!G43+'Operational Data'!G42 -> 16874 | G34: m3 | H34: =IF(E34>0,E34/'Operational Data'!$G$21,"-") -> 0.09083275017 | J34: m3/te
A35: Urea / Ammonia | E35: =+'Operational Data'!G44 -> 469103 | G35: kg | H35: =IF(E35>0,E35/'Operational Data'!$G$21,"-") -> 2.525181676 | J35: kg/te
A36: Activated Carbon | E36: =+'Operational Data'!G46 -> 1110240 | G36: kg | H36: =IF(E36>0,E36/'Operational Data'!$G$21,"-") -> 5.976422458 | J36: kg/te
A37: Lime / hydrated lime / Sodium Bicarb. | E37: =+'Operational Data'!G47 -> 218448.3232 | G37: kg | H37: =IF(E37>0,E37/'Operational Data'!$G$21,"-") -> 1.175907429 | J37: kg/te
A39: Operator’s comments :
A43: =+A31 -> 2023 | B43: Annual Reporting of other performance indicators
A44: Parameter | C44: Results by Line
C45: A1 | D45: A2 | E45: A3 | F45: A4 | G45: A5 | I45: Turbine 1 | J45: Turbine 2
A46: Operating hours for the year, hours | C46: 7853 | D46: 7944
A47: Number of periods of abnormal operation, qty.
A48: Cumulative hours of abnormal operation for this year, hours
A50: Operator’s comments :
A54: Signed: | G54: Date:

Sheet Energy Form 1
A1: =+'Cover Page'!C39 -> 2023 | B1: Annual Reporting of Energy Usage/Export
A3: =+'Cover Page'!B31 -> Permit EPR/EP3034SN | F3: Operator: | G3: Wastenotts (Reclamation) Limited
A5: Facility: | B5: =+'Cover Page'!B33:I33 -> Eastcroft Energy from Waste Plant | F5: Form: | G5: Energy 1
A7: Reporting Period from: | D7: =+'Perf. Form 1'!D6:E6 -> 2023-01-01 | F7: to: | G7: =+'Perf. Form 1'!G6:H6 -> 2023-12-31
A9: Energy Source | D9: Energy Usage | F9: Unit | G9: Specific Useage (KWh/tonne incinerated
A10: Electricity Produced | D10: =+'Operational Data'!G24 -> 0 | F10: MWh | G10: =+'Operational Data'!H24 -> -
A11: Electricity Imported | D11: =+'Operational Data'!G27 -> 9904.727 | F11: MWh | G11: =+'Operational Data'!H27 -> 53.31715024
A12: Electricity Exported | D12: =+'Operational Data'!G25 -> 0 | F12: MWh | G12: =+'Operational Data'!H25 -> -
A13: Gas Oil | D13: 117.9 | F13: tonnes
A14: Steam/hot water exported | D14: =+'Operational Data'!G30 -> 366079 | F14: GWh | G14: =+'Operational Data'!H30 -> 1970.603434
A18: Operator’s comments :
A29: Signed: | G29: Date:

Sheet Permit Compliance
A1: =+'Cover Page'!$B$29 -> Annual Performance Report 2023 | E1: =+'Cover Page'!$B$33 -> Eastcroft Energy from Waste Plant
A3: Summary of Permit Compliance
A5: Compliance with permit limits for continuously monitored pollutants
A7: The plant met its emission limits as shown in the table below:
A8: Substance | C8: Percentage time compliant during operationNote 1 | L8: Notes:
C9: Half-hourly limit | F9: Daily limit | L9: Note 1: Please report to 2 decimal places, i.e. xx.xx% Note 2: Please provide a brief summary of each notification or non-compliance in the table (rather than just referring to notifications that were sent to the Regulator), including stating the value of measured result for any ELV exceedances.
A10: Particulates | C10: 1 | F10: 1
A11: Oxides of nitrogen | C11: 1 | F11: 1
A12: Sulphur dioxide | C12: 0.9999 | F12: 1
A13: Carbon monoxide | C13: 100.00% 95% of 10-min averages | F13: 1
A14: Total organic carbon | C14: 0.9998 | F14: 1
A15: Hydrogen chloride | C15: 0.9999 | F15: 1
A16: Hydrogen fluoride | C16: 1 | F16: 1
C17: 0.9999 | F17: 1
A19: Summary of any notifications or non-compliances under the permit
A20: Date | B20: Summary of notification or non-compliance [including Line/Reference]Note 2 | E20: Reason | H20: Measures taken to prevent reoccurrence
A21: 2023-05-10 | B21: Gas cylinder explosion on line 1 grate caused a half-hourly TOC exceedance of 22.5 mg/Nm3 against a threshold of 20 mg/Nm3. | E21: Gas cylinder explosion | H21: Additional Inspections
A22: 2023-05-25 | B22: Gas cylinder explosion on line 2 grate caused a half-hourly TOC exceedance of 21.3 mg/Nm3 against a threshold of 20 mg/Nm3. | E22: Gas cylinder explosion | H22: Staff briefing a communication with waste producers
A23: 2023-08-15 | B23: Exceedance of half-hour limit value for HCl on line 1 of 71.2 mg/Nm3 against a threshold of 60 mg/Nm3 | E23: Excess of chlorinated feedstock assumed to be PVC | H23: Staff briefed on ensuring full mixing of waste and inspections for excessive plastics
A24: 2023-10-25 | B24: An electrical malfunction caused the baghouse bypass system to open for approximately 6 minutes | E24: Electrical fault | H24: Bypass welded shut
A25: 2023-11-23 | B25: Gas cylinder explosion on line 1 grate caused a half-hourly TOC exceedance of 21.0 mg/Nm3 against a threshold of 20 mg/Nm3. | E25: Gas cylinder explosion | H25: Customer audits
A26: 2023-12-13 | B26: Gas cylinder explosion on line 2 grate caused a half-hourly TOC exceedance of 38.6 mg/Nm3 against a threshold of 20 mg/Nm3. | E26: Gas cylinder explosion | H26: Review of waste inspection procedure
A27: 2023-12-19 | B27: Gas cylinder explosion on line 2 grate caused a half-hourly TOC exceedance of 22.2 mg/Nm3 against a threshold of 20 mg/Nm3. | E27: Gas cylinder explosion | H27: Additional waste inspections and submission of a permit variation
A28: 2023-12-20 | B28: Exceedance of half-hour ELV for SO2 on line 1 of 233.8 mg/Nm3 against a threshold of 200 mg/Nm3. | E28: Excess loading of sulphur-bearing waste | H28: Additional training of control room staff and replacement of bag filters
A29: 2023-12-23 | B29: Gas cylinder explosion on line 2 grate caused a half-hourly TOC exceedance of 35.9 mg/Nm3 against a threshold of 20 mg/Nm3. | E29: Gas cylinder explosion | H29: Permit variation in accordance with the IED under way
A32: Summary of any complaints received and actions to taken to resolve them.
A33: Date | B33: Summary of complaint [including Line/Reference] | E33: Reason * | H33: Measures taken to prevent reoccurrence
E39: * including whether substantiated by the operator or the EA

Sheet Improvements
A1: =+'Cover Page'!$B$29 -> Annual Performance Report 2023 | E1: =+'Cover Page'!$B$33 -> Eastcroft Energy from Waste Plant
A3: Summary of Plant Improvements
A5: Summary of any efficiency improvements that have been completed within the year.
A6: Ongoing replacement of lighting with LED units to reduce electricity consumption.
A16: Summary of any permit improvement conditions that have been completed within the year and the resulting environmental benefits.
A17: Reports demonstrating compliance with IC2, IC3 and IC4 were submitted prior to the deadline of 30/09/2023. Reduced daily ELVs in accordance with the BREF requirements were introduced prior to 03/12/2023. An OTNOC Management Plan using the most recent draft template provided by the Environment Agency was added to the site's Written Management System on 03/12/2023
A27: Summary of any changes to the plant or operating techniques which required a variation to the permit and a summary of the resulting environmental impact.
A28: No new variation was issued in 2023
A38: Summary of any other improvements made to the plant or planned to be made and a summary of the resulting environmental benefits.

Sheet Public Liasion
A1: =+'Cover Page'!$B$29 -> Annual Performance Report 2023 | E1: =+'Cover Page'!$B$33 -> Eastcroft Energy from Waste Plant
A3: Details of Public & Stakeholder Liasion
A5: Summary of events held during the reporting year.
A6: Date | C6: Description
A7: 2023-05-17 | C7: Community Liaison Group meeting
A9: 2023-08-03 | C9: Community Liaison Group meeting
A16: List of events planned for next year
A17: Date | C17: Description
A18: 2024-01-17 | C18: Community Liaison Group meeting
A20: 2024-08-21 | C20: Community Liaison Group meeting
A29: If you wish to be involved in the public liasion programme, please contact info.eastcroft@fccenvironment.co.uk 0115 9869505 or visit https://eastcroft.fccenvironment.co.uk/contact-us/

Sheet CO2 N2O
A1: =+'Cover Page'!$B$29 -> Annual Performance Report 2023 | C1: =+'Cover Page'!$B$33 -> Eastcroft Energy from Waste Plant
A3: Carbon dioxide emissions and biogenic content of waste inputs | F3: Notes:
A5: Carbon dioxide emissions (all types of plant)
B6: Annual mass of carbon dioxide released | C6: tonnes | D6: 187040
B7: Annual mass of carbon dioxide released per tonne of waste burned | C7: t CO2 / t waste | D7: 1.007
B8: Annual mass of carbon dioxide released per MWh of energy exported | C8: t CO2 / MWh export | D8: 0.511
B9: Description of how annual carbon dioxide mass emission has been calculated. See Note 1 | C9: CO2 CEMS data and flow used to calculate annual emission in tonnes for each line | F9: Note 1: Where available, data from CO2 CEMS should be used. Otherwise, only where no CEMS data is available, a suitable emissions factor should be used based on the tonnage of waste burned e.g.0.942 tCO2/t waste as per Tolvik report 2022, or other justified emissions factor - refer to embedded Environment Agency guidance note above or updated version for suitable descriptive text.
A10: Nitrous oxide emissions (only plants which use ammonia or urea to abate NOx emissions)
B11: Annual mass emissions of nitrous oxide | C11: tonnes N2O | D11: 1.233
B12: Description of how annual nitrous oxide mass emission has been calculated See Note 2 | C12: N2O CEMS data and flow used to calculate annual emission in tonnes for each line | F12: Note 2: Where available, data from N2O CEMS should be used. If no CEMS data is available, from periodic monitoring. Otherwise, a suitable emissions factor should be used based on the tonnage of waste burned e.g. 0.0981 kgN20/t waste as per 2021 Pollution Inventory data for plants with urea-based SNCR - refer to embedded Environment Agency guidance note above or updated version for suitable descriptive text.
A13: Total annual carbon dioxide and nitrous oxide emissions. See Note 3. | C13: tonnes CO2e | D13: 187407 | F13: Note 3: Total annual carbon dioxide and nitrous oxide emissions reported as carbon dioxide equivalent where 1 tonne nitrous oxide is equivalent to 298 tonne carbon dioxide
A14: Biogenic CO2 emissions (See Note 4) | F14: Note 4: Only plants combusting residual municipal waste, refuse derived fuel or solid recovered fuel
B15: Percentage of total carbon dioxide emissions arising from biogenic waste | C15: % | D15: 0.518
B16: No. of measurements undertaken | C16: Number | D16: 0
B17: Description of how percentage biogenic carbon dioxide emissions have been measured or calculated. See Note 5 | C17: Figure taken from 2017 WRAP data | F17: Note 5: Examples include direct measurement via C14 method or BIOMA software - refer to embedded Environment Agency guidance note above or updated version for suitable descriptive text, quoting standards where relevant. Otherwise, as an approximation (and in lieu of any more accurate metrics which may be developed in future), the measured or estimated biogenic fraction by net calorific value can be assumed to be the same as the biogenic CO2 fraction of the total CO2 emissions from the plant.
A18: Biogenic fraction of waste feedstock (See Note 4)
B19: Yearly average biogenic percentage of the waste by net calorific value (NCV) | C19: % | D19: 0.518
B20: If sampling undertaken, no. of samples used to ascertain average biogenic % above | C20: Number | D20: 0
B21: Description of how biogenic percentage (by NCV) has been calculated or estimated. See Note 6 | C21: Figure taken from 2017 WRAP data | F21: Note 6: Where available, data from waste sampling should be used; otherwise, an estimated figure with justification can be used, or a figure assumed on the basis of a national average e.g. 2017 WRAP data for residual waste of 51.8% biogenic energy content - refer to embedded Environment Agency guidance note above or updated version for suitable descriptive text, quoting standards where relevant.
B23: Comments:
B24: C14 analysis booked for 2024 so site specific figures for biogenic proportion of carbon emissions will be used moving forward

Sheet Residue Quality
A1: =+'Cover Page'!$B$29 -> Annual Performance Report 2023 | E1: =+'Cover Page'!$B$33 -> Eastcroft Energy from Waste Plant
A3: Residue Quality Monitoring Requirements
A5: Summary of monitoring undertaken and compliance
A6: Monitoring of residues for permit compliance was undertaken with full compliance to the residue limit recorded. No specific events were recorded during 2023.
A8: All 24 samples taken and analysed as per the ESA protocol were returned demonstrating that the Incinerator Bottom Ash should be classified as non-hazardous.
A13: Commentary on any specific events
A14: Date & Event | C14: Description
A27: Residue Quality Monitoring Results
A28: Parameter (unit) | C28: Limit | D28: Normal Operation
D29: Bottom ash | F29: APC Residues
A30: Loss on Ignition (average %) | C30: <5%
A31: Total Organic Carbon (average %) | C31: <3% | D31: 0.93
A32: No. of Assessments Undertaken | C32: --- | D32: 24 | F32: 4
A33: No. of Hazardous Results | C33: --- | D33: 0
A35: Comments :

Sheet Water
A1: =+'Cover Page'!$B$29 -> Annual Performance Report 2023 | E1: =+'Cover Page'!$B$33 -> Eastcroft Energy from Waste Plant
A3: Emissions to Water
A5: Summary of monitoring undertaken and compliance
A6: No monitoring required
A13: Commentary on any specific events
A14: Date & Event | C14: Description
A22: Emissions to Water / Sewer
A23: Parameter | D23: Monitoring Frequency | F23: Limit | G23: Target | H23: Max. | I23: Average

Sheet Air (periodic)
A1: =+'Cover Page'!$B$29 -> Annual Performance Report 2023 | E1: =+'Cover Page'!$B$33 -> Eastcroft Energy from Waste Plant
A3: Emissions to Air (periodically monitored)
A5: Summary of monitoring undertaken, standards used and compliance | K5: Notes:
K6: Template may require adjustment for any bespoke monitoring requirements of permit - please also check that all default ELV values, reference periods and the stated oxygen reference value match those for your plant, and edit if necessary!
A9: Results of emissions to air that are periodically monitored - oxygen reference 6%
A10: Substance | C10: Ref. Period | D10: Emission Limit Value* | F10: Average | K10: User to add additional tables as necessary, depending on whether quarterly or bi-annual reporting is required for the compliance year
F11: A1 | G11: A2 | H11: A3 | I11: A4 | J11: A5
A12: Hydrogen fluoride | C12: 1 hr | D12: 2 mg/m3 | F12: =[1]Line1!H38 -> 0.1038 | G12: =[1]Line2!H38 -> 0.194
A13: Cd and Th and their compounds | C13: 0.5-8hrs | D13: 0.05 mg/m3 | F13: =[1]Line1!H32 -> 0.00115 | G13: =[1]Line2!H32 -> 0.0016
A14: Hg and its compounds | C14: 0.5-8hrs | D14: 0.05 mg/m3 | F14: =[1]Line1!H36 -> 0.001 | G14: =[1]Line2!H36 -> 0.000695 | K14: * Denotes limits that were in force until 2 December 2023; from 3 December 2023 the following new limits applied (those not listed remained unchanged):
A15: Sb, As, Pb, Cr, Co, Cu, Mn, Ni, V and their compounds | C15: 0.5-8hrs | D15: 0.5 mg/m3 | F15: =[1]Line1!H34 -> 0.0255 | G15: =[1]Line2!H34 -> 0.08
A16: Dioxins & Furans (I-TEQ) | C16: 6-8hrs | D16: 0.1 ng/m3 | F16: =[1]Line1!H2 -> 0.0013 | G16: =[1]Line2!H2 -> 0.00325 | K16: Substance | L16: Reference Period | M16: Emission Limit Value
A17: PCBs (WHO-TEQ Humans / Mammals) | C17: 6-8hrs | D17: None set ng/m3 | F17: =[1]Line1!H18 -> 0.00012 | G17: =[1]Line2!H18 -> 0.000355
A18: PCBs (WHO-TEQ Fish) | C18: 6-8hrs | D18: None set ng/m3 | F18: =[1]Line1!H20 -> 9.6e-06 | G18: =[1]Line2!H20 -> 2.15e-05 | K18: Hydrogen fluoride | L18: Average of three consecutive measurements of at least 30 minutes each | M18: 1 mg/m3
A19: PCBs (WHO-TEQ Birds) | C19: 6-8hrs | D19: None set ng/m3 | F19: =[1]Line1!H22 -> 0.000465 | G19: =[1]Line2!H22 -> 0.00115 | K19: Cd and Th and their compounds | L19: Average of three consecutive measurements of at least 30 minutes each | M19: 0.02 mg/m3
A20: Dioxins & Furans (WHO-TEQ Humans / Mammals) | C20: 6-8hrs | D20: None set ng/m3 | F20: =[1]Line1!H4 -> 0.0013 | G20: =[1]Line2!H4 -> 0.0031 | K20: Hg and its compounds | L20: Average of three consecutive measurements of at least 30 minutes each | M20: 0.02 mg/m3
A21: Dioxins & Furans (WHO-TEQ Fish) | C21: 6-8hrs | D21: None set ng/m3 | F21: =[1]Line1!H6 -> 0.0014 | G21: =[1]Line2!H6 -> 0.00315 | K21: Sb, As, Pb, Cr, Co, Cu, Mn, Ni, V and their compounds | L21: Average of three consecutive measurements of at least 30 minutes each | M21: 0.3 mg/m3
A22: Dioxins & Furans (WHO-TEQ Birds) | C22: 6-8hrs | D22: None set ng/m3 | F22: =[1]Line1!H8 -> 0.0026 | G22: =[1]Line2!H8 -> 0.0062 | K22: Dioxins & Furans (I-TEQ) | L22: 6-8hrs | M22: 0.06 ng/m3
A23: Anthanthrene | C23: 6-8hrs | D23: None set µg/m3 | F23: =[1]Line1!N52 -> < 0.0018 | G23: =[1]Line2!N52 -> < 0.0019
A24: Benzo(a)anthracene | C24: 6-8hrs | D24: None set µg/m3 | F24: =[1]Line1!N53 -> < 0.0026 | G24: =[1]Line2!N53 -> < 0
A25: Benzo(a)pyrene | C25: 6-8hrs | D25: None set µg/m3 | F25: =[1]Line1!N59 -> < 0.002 | G25: =[1]Line2!N59 -> < 0.0017
A26: Benzo(b)fluoranthene | C26: 6-8hrs | D26: None set µg/m3 | F26: =[1]Line1!N54 -> < 0.0025 | G26: =[1]Line2!N54 -> < 0.01
A27: Benzo(b)naptho(2,1-d) thiophene | C27: 6-8hrs | D27: None set µg/m3 | F27: =[1]Line1!N56 -> < 0.0017 | G27: =[1]Line2!N56 -> < 0.0019
A28: Benzo(c)phenanthrene | C28: 6-8hrs | D28: None set µg/m3 | F28: =[1]Line1!N57 -> < 0.0018 | G28: =[1]Line2!N57 -> < 0.0019
A29: Benzo(ghi)perylene | C29: 6-8hrs | D29: None set µg/m3 | F29: =[1]Line1!N58 -> < 0.0041 | G29: =[1]Line2!N58 -> < 0.01
A30: Benzo(k)fluoranthene | C30: 6-8hrs | D30: None set µg/m3 | F30: =[1]Line1!N55 -> < 0.0018 | G30: =[1]Line2!N55 -> < 0.0017
A31: Cholanthrene | C31: 6-8hrs | D31: None set µg/m3 | F31: =[1]Line1!N60 -> < 0.0018 | G31: =[1]Line2!N60 -> < 0.0019
A32: Chrysene | C32: 6-8hrs | D32: None set µg/m3 | F32: =[1]Line1!N61 -> < 0.0036 | G32: =[1]Line2!N61 -> < 0.01
A33: Cyclopenta(cd)pyrene | C33: 6-8hrs | D33: None set µg/m3 | F33: =[1]Line1!N62 -> < 0.0018 | G33: =[1]Line2!N62 -> < 0.0019
A34: Dibenzo(ai)pyrene | C34: 6-8hrs | D34: None set µg/m3 | F34: =[1]Line1!N64 -> < 0.0018 | G34: =[1]Line2!N64 -> < 0.0019
A35: Dibenzo(ah)anthracene | C35: 6-8hrs | D35: None set µg/m3 | F35: =[1]Line1!N63 -> < 0.0018 | G35: =[1]Line2!N63 -> < 0.0019
A36: Fluoranthene | C36: 6-8hrs | D36: None set µg/m3 | F36: =[1]Line1!N65 -> 0.09 | G36: =[1]Line2!N65 -> 0.11
A37: Indeno(123-cd) pyrene | C37: 6-8hrs | D37: None set µg/m3 | F37: =[1]Line1!N66 -> < 0.0022 | G37: =[1]Line2!N66 -> < 0.01
A38: Naphthalene | C38: 6-8hrs | D38: None set µg/m3 | F38: =[1]Line1!N67 -> 3.88 | G38: =[1]Line2!N67 -> 0.15
A39: Comments :

Sheet Air (CEMS)
A1: =+'Cover Page'!$B$29 -> Annual Performance Report 2023 | I1: =+'Cover Page'!$B$33 -> Eastcroft Energy from Waste Plant
A3: Emissions to Air (continously monitored)
N4: Notes:
A5: Summary of monitoring undertaken, standards used and compliance | N5: Template may require adjustment for any bespoke monitoring requirements of permit
N6: Please check that all default ELV values match those for your plant and edit if necessary!
N7: Report to 1 decimal place
A11: Results of emissions to air that are continuously monitored (maximum and average values for each line) - oxygen reference 11%
A12: Substance | B12: Reference Period | C12: Emission Limit Value** | D12: A1 | F12: A2 | H12: A3 | J12: A4 | L12: A5
D13: Max. | E13: Avg. | F13: Max. | G13: Avg. | H13: Max. | I13: Avg. | J13: Max. | K13: Avg. | L13: Max. | M13: Avg. | N13: ** Denotes limits that were in force until 2 December 2023; from 3 December 2023 the following new limits applied (those not listed remained unchanged):
A14: Oxides of nitrogen | B14: Daily mean | C14: 200 mg/m3 | D14: =[1]NOx!$O$19 -> 194.3 | E14: =[1]NOx!N19 -> 158.7083333 | F14: =[1]NOx!O34 -> 190.9 | G14: =[1]NOx!N34 -> 160.6583333
B15: ½ hourly mean | C15: 400 mg/m3 | D15: =[1]NOx!M19 -> 365 | E15: =[1]NOx!L19 -> 158.6333333 | F15: =[1]NOx!M34 -> 346.4 | G15: =[1]NOx!L34 -> 160.7416667 | N15: Substance | O15: Reference Period | P15: Emission Limit Value
A16: Particulates | B16: Daily mean | C16: 10 mg/m3 | D16: =[1]Particulates!O19 -> 0.7 | E16: =[1]Particulates!N19 -> 0.3083333333 | F16: =[1]Particulates!O34 -> 0.9 | G16: =[1]Particulates!N34 -> 0.175
B17: ½ hourly mean | C17: 30 mg/m3 | D17: =[1]Particulates!M19 -> 4.4 | E17: =[1]Particulates!L19 -> 0.3333333333 | F17: =[1]Particulates!M34 -> 6.3 | G17: =[1]Particulates!L34 -> 0.2583333333 | N17: Oxides of nitrogen | O17: Daily mean | P17: 180 mg/m3
A18: Total Organic Carbon | B18: Daily mean | C18: 10 mg/m3 | D18: =[1]TOC!O19 -> 2.7 | E18: =[1]TOC!N19 -> 0.625 | F18: =[1]TOC!O34 -> 2.1 | G18: =[1]TOC!N34 -> 0.6416666667 | N18: Particulates | O18: Daily mean | P18: 5 mg/m3
B19: ½ hourly mean | C19: 20 mg/m3 | D19: =[1]TOC!M19 -> 22.5 | E19: =[1]TOC!L19 -> 0.6833333333 | F19: =[1]TOC!M34 -> 38.6 | G19: =[1]TOC!L34 -> 0.675 | N19: Hydrogen chloride | O19: Daily mean | P19: 8 mg/m3
A20: Hydrogen chloride | B20: Daily mean | C20: 10 mg/m3 | D20: =[1]HCl!O19 -> 7.9 | E20: =[1]HCl!N19 -> 4.383333333 | F20: =[1]HCl!O34 -> 7.8 | G20: =[1]HCl!N34 -> 5.316666667 | N20: Sulphur dioxide | O20: Daily mean | P20: 40 mg/m3
B21: ½ hourly mean | C21: 60 mg/m3 | D21: =[1]HCl!M19 -> 71.2 | E21: =[1]HCl!L19 -> 4.425 | F21: =[1]HCl!M34 -> 47.8 | G21: =[1]HCl!L34 -> 5.375 | N21: Ammonia | O21: Daily mean | P21: 15 mg/m3
A22: Sulphur dioxide | B22: Daily mean | C22: 50 mg/m3 | D22: =[1]SO2!O19 -> 23.2 | E22: =[1]SO2!N19 -> 19.38333333 | F22: =[1]SO2!O34 -> 40.3 | G22: =[1]SO2!N34 -> 16.25833333
B23: ½ hourly mean | C23: 200 mg/m3 | D23: =[1]SO2!M19 -> 233.8 | E23: =[1]SO2!L19 -> 19.41666667 | F23: =[1]SO2!M34 -> 194.2 | G23: =[1]SO2!L34 -> 16.425
A24: Carbon monoxide | B24: Daily mean | C24: 50 mg/m3 | D24: ='[1]CO 95% 10 min'!Q19 -> 17 | E24: ='[1]CO 95% 10 min'!P19 -> 5.966666667 | F24: ='[1]CO 95% 10 min'!Q34 -> 19 | G24: ='[1]CO 95% 10 min'!P34 -> 7.083333333
B25: ½ hourly mean * | C25: 100 mg/m3 *
B26: 95%ile 10-min avg * | C26: 150 mg/m3 * | D26: ='[1]CO 95% 10 min'!O19 -> 579.7 | E26: ='[1]CO 95% 10 min'!M19 -> 150 | F26: ='[1]CO 95% 10 min'!O34 -> 657.1 | G26: ='[1]CO 95% 10 min'!M34 -> 150
A27: Ammonia | B27: Daily mean | C27: No limit set until 03/12/23 | D27: =[1]NH3!O19 -> 14.4 | E27: =[1]NH3!N19 -> 1.366666667 | F27: =[1]NH3!O34 -> 17.5 | G27: =[1]NH3!N34 -> 1.775
A28: ** = delete as appropriate, depending on whether your plant has half-horly or 10-min CO ELVs
A29: Comments :

Sheet HCl
A1: =+'Cover Page'!$B$29 -> Annual Performance Report 2023 | E1: =+'Cover Page'!$B$33 -> Eastcroft Energy from Waste Plant
A3: Monitoring of Hydrogen Chloride emissions | D3: Whole Installation | G3: See Notes in Cell Q3 | J3: =+A3 -> Monitoring of Hydrogen Chloride emissions | N3: Per Combustion Line | Q3: Notes:
Q4: User to add logic to complete Whole installation, Table A5:G18. From the data in Per Combustion Line, Table J6:O79, subject to No. of lines installed
A5: mg/Nm3 | B5: 1/2 Hourly Reference Periods | E5: Daily Reference Periods
A6: =+'Cover Page'!C39 -> 2023 | B6: 1/2 hourly HCl ELV | C6: Monthly 1/2 hourly mean | D6: Highest 1/2 hourly maximum | E6: Daily HCl ELV* | F6: Monthly daily mean | G6: Highest daily maximum | J6: =+A6 -> 2023 | K6: mg/Nm3 | L6: Monthly 1/2 hourly mean | M6: Monthly 1/2 hourly maximum | N6: Monthly daily mean | O6: Monthly daily maximum
A7: Jan | B7: 60 | C7: 9.6 | D7: 31.2 | E7: 10 | F7: 9.6 | G7: 11.5 | J7: A1 | K7: Jan | L7: 4.4 | M7: 7.8 | N7: 4.4 | O7: 5.5
A8: Feb | B8: 60 | C8: 9.7 | D8: 37.2 | E8: 10 | F8: 9.7 | G8: 11.6 | K8: Feb | L8: 4.4 | M8: 21.2 | N8: 4.4 | O8: 5.5
A9: Mar | B9: 60 | C9: 9.9 | D9: 25.9 | E9: 10 | F9: 9.9 | G9: 12.2 | K9: Mar | L9: 4.4 | M9: 15 | N9: 4.4 | O9: 5.8 | Q9: Whole Installation table A5:G18:
A10: Apr | B10: 60 | C10: 9.4 | D10: 39 | E10: 10 | F10: 9.3 | G10: 11.5 | K10: Apr | L10: 4.1 | M10: 26.2 | N10: 4.1 | O10: 5.3 | Q10: Mean: for 1/2 hourly and daily periods calculate mean of values across all operational combustion lines for the month
A11: May | B11: 60 | C11: 11 | D11: 29.7 | E11: 10 | F11: 10.9 | G11: 12.5 | K11: May | L11: 5.2 | M11: 17.3 | N11: 5.2 | O11: 6.3
A12: Jun | B12: 60 | C12: 11.4 | D12: 19.5 | E12: 10 | F12: 11.3 | G12: 12.3 | K12: Jun | L12: 5.4 | M12: 7.8 | N12: 5.4 | O12: 5.8
A13: Jul | B13: 60 | C13: 9.3 | D13: 54.6 | E13: 10 | F13: 9 | G13: 11.8 | K13: Jul | L13: 3.8 | M13: 11.5 | N13: 3.6 | O13: 4.6 | Q13: Maximum: for 1/2 hourly and daily periods use the highest value across all operational combustion lines for the month
A14: Aug | B14: 60 | C14: 11.7 | D14: 84.5 | E14: 10 | F14: 11.6 | G14: 14 | K14: Aug | L14: 5.4 | M14: 71.2 | N14: 5.3 | O14: 6.7
A15: Sep | B15: 60 | C15: 12.5 | D15: 101.9 | E15: 10 | F15: 12.3 | G15: 15.7 | K15: Sep | L15: 5.7 | M15: 54.1 | N15: 5.6 | O15: 7.9
A16: Oct | B16: 60 | C16: 11 | D16: 23.2 | E16: 10 | F16: 10.9 | G16: 13.1 | K16: Oct | L16: 5.1 | M16: 8.4 | N16: 5.1 | O16: 5.9
A17: Nov | B17: 60 | C17: 6.3 | D17: 12.5 | E17: 10 | F17: 6.1 | G17: 8 | K17: Nov | L17: 2.6 | M17: 5.7 | N17: 2.5 | O17: 3.2
A18: Dec | B18: 60 | C18: 5.8 | D18: 22.2 | E18: 8 | F18: 5.8 | G18: 7.4 | K18: Dec | L18: 2.6 | M18: 13.1 | N18: 2.6 | O18: 3.5
E19: * ELV reduced to 8 mg/Nm3 on 3 December 2023 | K19: Annual | L19: 4.425 | M19: 71.2 | N19: 4.383333333 | O19: 7.9
J21: =+A6 -> 2023 | K21: mg/Nm3 | L21: Monthly 1/2 hourly mean | M21: Monthly 1/2 hourly maximum | N21: Monthly daily mean | O21: Monthly daily maximum
J22: A2 | K22: Jan | L22: 5.2 | M22: 23.4 | N22: 5.2 | O22: 6
K23: Feb | L23: 5.3 | M23: 16 | N23: 5.3 | O23: 6.1
K24: Mar | L24: 5.5 | M24: 10.9 | N24: 5.5 | O24: 6.4
K25: Apr | L25: 5.3 | M25: 12.8 | N25: 5.2 | O25: 6.2
K26: May | L26: 5.8 | M26: 12.4 | N26: 5.7 | O26: 6.2
K27: Jun | L27: 6 | M27: 11.7 | N27: 5.9 | O27: 6.5
K28: Jul | L28: 5.5 | M28: 43.1 | N28: 5.4 | O28: 7.2
K29: Aug | L29: 6.3 | M29: 13.3 | N29: 6.3 | O29: 7.3
K30: Sep | L30: 6.8 | M30: 47.8 | N30: 6.7 | O30: 7.8
K31: Oct | L31: 5.9 | M31: 14.8 | N31: 5.8 | O31: 7.2
K32: Nov | L32: 3.7 | M32: 6.8 | N32: 3.6 | O32: 4.8
K33: Dec | L33: 3.2 | M33: 9.1 | N33: 3.2 | O33: 3.9
K34: Annual | L34: 5.375 | M34: 47.8 | N34: 5.316666667 | O34: 7.8
J36: =+A6 -> 2023 | K36: mg/Nm3 | L36: Monthly 1/2 hourly mean | M36: Monthly 1/2 hourly maximum | N36: Monthly daily mean | O36: Monthly daily maximum
J37: A3 | K37: Jan
K38: Feb
K39: Mar
K40: Apr
K41: May
K42: Jun
K43: Jul
K44: Aug
K45: Sep
K46: Oct
K47: Nov
A48: Comments : | K48: Dec
K49: Annual | L49: =AVERAGE(L37:L48) ->  | M49: =MAX(M37:M48) -> 0 | N49: =AVERAGE(N37:N48) ->  | O49: =MAX(O37:O48) -> 0
J51: =+A6 -> 2023 | K51: mg/Nm3 | L51: Monthly 1/2 hourly mean | M51: Monthly 1/2 hourly maximum | N51: Monthly daily mean | O51: Monthly daily maximum
J52: A4 | K52: Jan
K53: Feb
K54: Mar
K55: Apr
K56: May
K57: Jun
K58: Jul
K59: Aug
K60: Sep
K61: Oct
K62: Nov
K63: Dec
K64: Annual | L64: =AVERAGE(L52:L63) ->  | M64: =MAX(M52:M63) -> 0 | N64: =AVERAGE(N52:N63) ->  | O64: =MAX(O52:O63) -> 0
J66: =+A6 -> 2023 | K66: mg/Nm3 | L66: Monthly 1/2 hourly mean | M66: Monthly 1/2 hourly maximum | N66: Monthly daily mean | O66: Monthly daily maximum
J67: A5 | K67: Jan
K68: Feb
K69: Mar
K70: Apr
K71: May
K72: Jun
K73: Jul
K74: Aug
K75: Sep
K76: Oct
K77: Nov
K78: Dec
K79: Annual | L79: =AVERAGE(L67:L78) ->  | M79: =MAX(M67:M78) -> 0 | N79: =AVERAGE(N67:N78) ->  | O79: =MAX(O67:O78) -> 0

Sheet SO2
A1: =+'Cover Page'!$B$29 -> Annual Performance Report 2023 | E1: =+'Cover Page'!$B$33 -> Eastcroft Energy from Waste Plant
A3: Monitoring of Sulphur dioxide emissions | D3: Whole Installation | G3: See Notes in Cell Q3 | J3: =+A3 -> Monitoring of Sulphur dioxide emissions | N3: Per Combustion Line | Q3: Notes:
Q4: User to add logic to complete Whole installation, Table A5:G18. From the data in Per Combustion Line, Table J6:O79, subject to No. of lines installed
A5: mg/Nm3 | B5: 1/2 Hourly Reference Periods | E5: Daily Reference Periods
A6: =+'Cover Page'!C39 -> 2023 | B6: 1/2 hourly SO2 ELV | C6: Monthly 1/2 hourly mean | D6: Highest 1/2 hourly maximum | E6: Daily SO2 ELV* | F6: Monthly daily mean | G6: Highest daily maximum | J6: =+A6 -> 2023 | K6: mg/Nm3 | L6: Monthly 1/2 hourly mean | M6: Monthly 1/2 hourly maximum | N6: Monthly daily mean | O6: Monthly daily maximum
A7: Jan | B7: 200 | C7: 35.2 | D7: 125.9 | E7: 50 | F7: 35 | G7: 48.2 | J7: A1 | K7: Jan | L7: 20 | M7: 60.3 | N7: 19.8 | O7: 26.6
A8: Feb | B8: 200 | C8: 39 | D8: 168.2 | E8: 50 | F8: 38.6 | G8: 50.3 | K8: Feb | L8: 22.5 | M8: 94.1 | N8: 22.5 | O8: 26.3
A9: Mar | B9: 200 | C9: 41 | D9: 314.3 | E9: 50 | F9: 40.9 | G9: 56 | K9: Mar | L9: 23.2 | M9: 120.1 | N9: 23.2 | O9: 28.1 | Q9: Whole Installation table A5:G18:
A10: Apr | B10: 200 | C10: 39.4 | D10: 267.5 | E10: 50 | F10: 39.2 | G10: 72.2 | K10: Apr | L10: 23.1 | M10: 122.5 | N10: 23.1 | O10: 38.6 | Q10: Mean: for 1/2 hourly and daily periods calculate mean of values across all operational combustion lines for the month
A11: May | B11: 200 | C11: 29.5 | D11: 322.8 | E11: 50 | F11: 29.5 | G11: 64.6 | K11: May | L11: 17.3 | M11: 144.5 | N11: 17.3 | O11: 40.3
A12: Jun | B12: 200 | C12: 23.6 | D12: 52.2 | E12: 50 | F12: 23.5 | G12: 28.4 | K12: Jun | L12: 13.5 | M12: 24.5 | N12: 13.4 | O12: 14.8
A13: Jul | B13: 200 | C13: 38.7 | D13: 158.3 | E13: 50 | F13: 37.9 | G13: 70.8 | K13: Jul | L13: 20.6 | M13: 42.9 | N13: 20.5 | O13: 30.5 | Q13: Maximum: for 1/2 hourly and daily periods use the highest value across all operational combustion lines for the month
A14: Aug | B14: 200 | C14: 28.5 | D14: 166.1 | E14: 50 | F14: 28.3 | G14: 44.5 | K14: Aug | L14: 16.6 | M14: 125.1 | N14: 16.6 | O14: 23.9
A15: Sep | B15: 200 | C15: 27.4 | D15: 216.5 | E15: 50 | F15: 27 | G15: 45.1 | K15: Sep | L15: 15.3 | M15: 137.6 | N15: 15.1 | O15: 22.9
A16: Oct | B16: 200 | C16: 28.8 | D16: 104.4 | E16: 50 | F16: 28.7 | G16: 42.3 | K16: Oct | L16: 15.7 | M16: 59.5 | N16: 15.7 | O16: 23.5
A17: Nov | B17: 200 | C17: 48.8 | D17: 289.9 | E17: 50 | F17: 49 | G17: 75 | K17: Nov | L17: 22.2 | M17: 141.9 | N17: 22.4 | O17: 39
A18: Dec | B18: 200 | C18: 50.2 | D18: 418.3 | E18: 40 | F18: 50.1 | G18: 72.4 | K18: Dec | L18: 23 | M18: 233.8 | N18: 23 | O18: 35.4
E19: * ELV reduced to 40 mg/Nm3 on 3 December 2023 | K19: Annual | L19: =AVERAGE(L7:L18) -> 19.41666667 | M19: =MAX(M7:M18) -> 233.8 | N19: =AVERAGE(N7:N18) -> 19.38333333 | O19: =MAX(O7:O18) -> 40.3
J21: =+A6 -> 2023 | K21: mg/Nm3 | L21: Monthly 1/2 hourly mean | M21: Monthly 1/2 hourly maximum | N21: Monthly daily mean | O21: Monthly daily maximum
J22: A2 | K22: Jan | L22: 15.2 | M22: 65.6 | N22: 15.2 | O22: 21.6
K23: Feb | L23: 16.5 | M23: 74.1 | N23: 16.1 | O23: 24
K24: Mar | L24: 17.8 | M24: 194.2 | N24: 17.7 | O24: 27.9
K25: Apr | L25: 16.3 | M25: 145 | N25: 16.1 | O25: 33.6
K26: May | L26: 12.2 | M26: 178.3 | N26: 12.2 | O26: 24.3
K27: Jun | L27: 10.1 | M27: 27.7 | N27: 10.1 | O27: 13.6
K28: Jul | L28: 18.1 | M28: 115.4 | N28: 17.4 | O28: 40.3
K29: Aug | L29: 11.9 | M29: 41 | N29: 11.7 | O29: 20.6
K30: Sep | L30: 12.1 | M30: 78.9 | N30: 11.9 | O30: 22.2
K31: Oct | L31: 13.1 | M31: 44.9 | N31: 13 | O31: 18.8
K32: Nov | L32: 26.6 | M32: 148 | N32: 26.6 | O32: 36
K33: Dec | L33: 27.2 | M33: 184.5 | N33: 27.1 | O33: 37
K34: Annual | L34: 16.425 | M34: 194.2 | N34: 16.25833333 | O34: 40.3
J36: =+A6 -> 2023 | K36: mg/Nm3 | L36: Monthly 1/2 hourly mean | M36: Monthly 1/2 hourly maximum | N36: Monthly daily mean | O36: Monthly daily maximum
J37: A3 | K37: Jan
K38: Feb
K39: Mar
K40: Apr
K41: May
K42: Jun
K43: Jul
K44: Aug
K45: Sep
K46: Oct
K47: Nov
A48: Comments : | K48: Dec
K49: Annual | L49: =AVERAGE(L37:L48) ->  | M49: =MAX(M37:M48) -> 0 | N49: =AVERAGE(N37:N48) ->  | O49: =MAX(O37:O48) -> 0
J51: =+A6 -> 2023 | K51: mg/Nm3 | L51: Monthly 1/2 hourly mean | M51: Monthly 1/2 hourly maximum | N51: Monthly daily mean | O51: Monthly daily maximum
J52: A4 | K52: Jan
K53: Feb
K54: Mar
K55: Apr
K56: May
K57: Jun
K58: Jul
K59: Aug
K60: Sep
K61: Oct
K62: Nov
K63: Dec
K64: Annual | L64: =AVERAGE(L52:L63) ->  | M64: =MAX(M52:M63) -> 0 | N64: =AVERAGE(N52:N63) ->  | O64: =MAX(O52:O63) -> 0
J66: =+A6 -> 2023 | K66: mg/Nm3 | L66: Monthly 1/2 hourly mean | M66: Monthly 1/2 hourly maximum | N66: Monthly daily mean | O66: Monthly daily maximum
J67: A5 | K67: Jan
K68: Feb
K69: Mar
K70: Apr
K71: May
K72: Jun
K73: Jul
K74: Aug
K75: Sep
K76: Oct
K77: Nov
K78: Dec
K79: Annual | L79: =AVERAGE(L67:L78) ->  | M79: =MAX(M67:M78) -> 0 | N79: =AVERAGE(N67:N78) ->  | O79: =MAX(O67:O78) -> 0

Sheet NOx
A1: =+'Cover Page'!$B$29 -> Annual Performance Report 2023 | E1: =+'Cover Page'!$B$33 -> Eastcroft Energy from Waste Plant
A3: Monitoring of Oxides of Nitrogen emissions | D3: Whole Installation | G3: See Notes in Cell Q3 | J3: =+A3 -> Monitoring of Oxides of Nitrogen emissions | N3: Per Combustion Line | Q3: Notes:
Q4: User to add logic to complete Whole installation, Table A5:G18. From the data in Per Combustion Line, Table J6:O79, subject to No. of lines installed
A5: mg/Nm3 | B5: 1/2 Hourly Reference Periods | E5: Daily Reference Periods
A6: =+'Cover Page'!C39 -> 2023 | B6: 1/2 hourly NOx ELV | C6: Monthly 1/2 hourly mean | D6: Highest 1/2 hourly maximum | E6: Daily NOx ELV* | F6: Monthly daily mean | G6: Highest daily maximum | J6: =+A6 -> 2023 | K6: mg/Nm3 | L6: Monthly 1/2 hourly mean | M6: Monthly 1/2 hourly maximum | N6: Monthly daily mean | O6: Monthly daily maximum
A7: Jan | B7: 400 | C7: 343.6 | D7: 496.4 | E7: 200 | F7: 343.9 | G7: 372.5 | J7: A1 | K7: Jan | L7: ='[1]Input Grid'!C30 -> 165.7 | M7: ='[1]Input Grid'!D30 -> 249 | N7: ='[1]Input Grid'!F30 -> 166 | O7: ='[1]Input Grid'!G30 -> 185.3
A8: Feb | B8: 400 | C8: 312.3 | D8: 440 | E8: 200 | F8: 312.2 | G8: 344.7 | K8: Feb | L8: ='[1]Input Grid'!C31 -> 155.3 | M8: ='[1]Input Grid'!D31 -> 216.2 | N8: ='[1]Input Grid'!F31 -> 155.2 | O8: ='[1]Input Grid'!G31 -> 168.1
A9: Mar | B9: 400 | C9: 332.9 | D9: 494 | E9: 200 | F9: 332.8 | G9: 375.8 | K9: Mar | L9: ='[1]Input Grid'!C32 -> 165.8 | M9: ='[1]Input Grid'!D32 -> 253.8 | N9: ='[1]Input Grid'!F32 -> 165.8 | O9: ='[1]Input Grid'!G32 -> 184.9 | Q9: Whole Installation table A5:G18:
A10: Apr | B10: 400 | C10: 295.9 | D10: 505.5 | E10: 200 | F10: 295.9 | G10: 337.3 | K10: Apr | L10: ='[1]Input Grid'!C33 -> 146.1 | M10: ='[1]Input Grid'!D33 -> 263.4 | N10: ='[1]Input Grid'!F33 -> 146.2 | O10: ='[1]Input Grid'!G33 -> 175.3 | Q10: Mean: for 1/2 hourly and daily periods calculate mean of values across all operational combustion lines for the month
A11: May | B11: 400 | C11: 250.4 | D11: 435.3 | E11: 200 | F11: 250.3 | G11: 319.9 | K11: May | L11: ='[1]Input Grid'!C34 -> 121 | M11: ='[1]Input Grid'!D34 -> 213 | N11: ='[1]Input Grid'!F34 -> 121 | O11: ='[1]Input Grid'!G34 -> 157.2
A12: Jun | B12: 400 | C12: 313.1 | D12: 444.7 | E12: 200 | F12: 312.9 | G12: 329.9 | K12: Jun | L12: ='[1]Input Grid'!C35 -> 154.9 | M12: ='[1]Input Grid'!D35 -> 220.6 | N12: ='[1]Input Grid'!F35 -> 154.8 | O12: ='[1]Input Grid'!G35 -> 159.7
A13: Jul | B13: 400 | C13: 347.5 | D13: 711.4 | E13: 200 | F13: 347.7 | G13: 384 | K13: Jul | L13: ='[1]Input Grid'!C36 -> 175 | M13: ='[1]Input Grid'!D36 -> 365 | N13: ='[1]Input Grid'!F36 -> 175.5 | O13: ='[1]Input Grid'!G36 -> 194.3 | Q13: Maximum: for 1/2 hourly and daily periods use the highest value across all operational combustion lines for the month
A14: Aug | B14: 400 | C14: 334.1 | D14: 503.4 | E14: 200 | F14: 334 | G14: 360.5 | K14: Aug | L14: ='[1]Input Grid'!C37 -> 166.6 | M14: ='[1]Input Grid'!D37 -> 242.7 | N14: ='[1]Input Grid'!F37 -> 166.5 | O14: ='[1]Input Grid'!G37 -> 179.8
A15: Sep | B15: 400 | C15: 331.1 | D15: 519.9 | E15: 200 | F15: 331.2 | G15: 354.2 | K15: Sep | L15: ='[1]Input Grid'!C38 -> 162.8 | M15: ='[1]Input Grid'!D38 -> 268.2 | N15: ='[1]Input Grid'!F38 -> 163 | O15: ='[1]Input Grid'!G38 -> 176.5
A16: Oct | B16: 400 | C16: 340.1 | D16: 611.4 | E16: 200 | F16: 340.1 | G16: 380.7 | K16: Oct | L16: ='[1]Input Grid'!C39 -> 169 | M16: ='[1]Input Grid'!D39 -> 323 | N16: ='[1]Input Grid'!F39 -> 169.1 | O16: ='[1]Input Grid'!G39 -> 190.9
A17: Nov | B17: 400 | C17: 323.9 | D17: 554.7 | E17: 200 | F17: 323.8 | G17: 342 | K17: Nov | L17: ='[1]Input Grid'!C40 -> 161.4 | M17: ='[1]Input Grid'!D40 -> 286.8 | N17: ='[1]Input Grid'!F40 -> 161.4 | O17: ='[1]Input Grid'!G40 -> 168.2
A18: Dec | B18: 400 | C18: 307.6 | D18: 438.3 | E18: 180 | F18: 307.6 | G18: 333.1 | K18: Dec | L18: ='[1]Input Grid'!C41 -> 160 | M18: ='[1]Input Grid'!D41 -> 237.5 | N18: ='[1]Input Grid'!F41 -> 160 | O18: ='[1]Input Grid'!G41 -> 169.2
E19: * ELV reduced to 180 mg/Nm3 on 3 December 2023 | K19: Annual | L19: =AVERAGE(L7:L18) -> 158.6333333 | M19: =MAX(M7:M18) -> 365 | N19: =AVERAGE(N7:N18) -> 158.7083333 | O19: =MAX(O7:O18) -> 194.3
J21: =+A6 -> 2023 | K21: mg/Nm3 | L21: Monthly 1/2 hourly mean | M21: Monthly 1/2 hourly maximum | N21: Monthly daily mean | O21: Monthly daily maximum
J22: A2 | K22: Jan | L22: 177.9 | M22: 247.4 | N22: 177.9 | O22: 187.2
K23: Feb | L23: 157 | M23: 223.8 | N23: 157 | O23: 176.6
K24: Mar | L24: 167.1 | M24: 240.2 | N24: 167 | O24: 190.9
K25: Apr | L25: 149.8 | M25: 242.1 | N25: 149.7 | O25: 162
K26: May | L26: 129.4 | M26: 222.3 | N26: 129.3 | O26: 162.7
K27: Jun | L27: 158.2 | M27: 224.1 | N27: 158.1 | O27: 170.2
K28: Jul | L28: 172.5 | M28: 346.4 | N28: 172.2 | O28: 189.7
K29: Aug | L29: 167.5 | M29: 260.7 | N29: 167.5 | O29: 180.7
K30: Sep | L30: 168.3 | M30: 251.7 | N30: 168.2 | O30: 177.7
K31: Oct | L31: 171.1 | M31: 288.4 | N31: 171 | O31: 189.8
K32: Nov | L32: 162.5 | M32: 267.9 | N32: 162.4 | O32: 173.8
K33: Dec | L33: 147.6 | M33: 200.8 | N33: 147.6 | O33: 163.9
K34: Annual | L34: =AVERAGE(L22:L33) -> 160.7416667 | M34: =MAX(M22:M33) -> 346.4 | N34: =AVERAGE(N22:N33) -> 160.6583333 | O34: =MAX(O22:O33) -> 190.9
J36: =+A6 -> 2023 | K36: mg/Nm3 | L36: Monthly 1/2 hourly mean | M36: Monthly 1/2 hourly maximum | N36: Monthly daily mean | O36: Monthly daily maximum
J37: A3 | K37: Jan
K38: Feb
K39: Mar
K40: Apr
K41: May
K42: Jun
K43: Jul
K44: Aug
K45: Sep
K46: Oct
K47: Nov
A48: Comments : | K48: Dec
K49: Annual | L49: =AVERAGE(L37:L48) ->  | M49: =MAX(M37:M48) -> 0 | N49: =AVERAGE(N37:N48) ->  | O49: =MAX(O37:O48) -> 0
J51: =+A6 -> 2023 | K51: mg/Nm3 | L51: Monthly 1/2 hourly mean | M51: Monthly 1/2 hourly maximum | N51: Monthly daily mean | O51: Monthly daily maximum
J52: A4 | K52: Jan
K53: Feb
K54: Mar
K55: Apr
K56: May
K57: Jun
K58: Jul
K59: Aug
K60: Sep
K61: Oct
K62: Nov
K63: Dec
K64: Annual | L64: =AVERAGE(L52:L63) ->  | M64: =MAX(M52:M63) -> 0 | N64: =AVERAGE(N52:N63) ->  | O64: =MAX(O52:O63) -> 0
J66: =+A6 -> 2023 | K66: mg/Nm3 | L66: Monthly 1/2 hourly mean | M66: Monthly 1/2 hourly maximum | N66: Monthly daily mean | O66: Monthly daily maximum
J67: A5 | K67: Jan
K68: Feb
K69: Mar
K70: Apr
K71: May
K72: Jun
K73: Jul
K74: Aug
K75: Sep
K76: Oct
K77: Nov
K78: Dec
K79: Annual | L79: =AVERAGE(L67:L78) ->  | M79: =MAX(M67:M78) -> 0 | N79: =AVERAGE(N67:N78) ->  | O79: =MAX(O67:O78) -> 0

Sheet TOC
A1: =+'Cover Page'!$B$29 -> Annual Performance Report 2023 | E1: =+'Cover Page'!$B$33 -> Eastcroft Energy from Waste Plant
A3: Monitoring of Total organic carbon emissions | D3: Whole Installation | G3: See Notes in Cell Q3 | J3: =+A3 -> Monitoring of Total organic carbon emissions | N3: Per Combustion Line | Q3: Notes:
Q4: User to add logic to complete Whole installation, Table A5:G18. From the data in Per Combustion Line, Table J6:O79, subject to No. of lines installed
A5: mg/Nm3 | B5: 1/2 Hourly Reference Periods | E5: Daily Reference Periods
A6: =+'Cover Page'!C39 -> 2023 | B6: 1/2 hourly TOC ELV | C6: Monthly 1/2 hourly mean | D6: Highest 1/2 hourly maximum | E6: Daily TOC ELV | F6: Monthly daily mean | G6: Highest daily maximum | J6: =+A6 -> 2023 | K6: mg/Nm3 | L6: Monthly 1/2 hourly mean | M6: Monthly 1/2 hourly maximum | N6: Monthly daily mean | O6: Monthly daily maximum
A7: Jan | B7: 20 | C7: 1.3 | D7: 16.9 | E7: 10 | F7: 1.3 | G7: 2.1 | J7: A1 | K7: Jan | L7: 0.5 | M7: 7.1 | N7: 0.5 | O7: 0.8
A8: Feb | B8: 20 | C8: 1.2 | D8: 26.5 | E8: 10 | F8: 1.1 | G8: 1.8 | K8: Feb | L8: 0.5 | M8: 12.1 | N8: 0.4 | O8: 0.8
A9: Mar | B9: 20 | C9: 1.1 | D9: 15.9 | E9: 10 | F9: 1.1 | G9: 1.6 | K9: Mar | L9: 0.4 | M9: 10.1 | N9: 0.4 | O9: 0.7 | Q9: Whole Installation table A5:G18:
A10: Apr | B10: 20 | C10: 1.1 | D10: 30 | E10: 10 | F10: 1 | G10: 2.1 | K10: Apr | L10: 0.4 | M10: 10.3 | N10: 0.4 | O10: 0.7 | Q10: Mean: for 1/2 hourly and daily periods calculate mean of values across all operational combustion lines for the month
A11: May | B11: 20 | C11: 1.3 | D11: 43.8 | E11: 10 | F11: 1.2 | G11: 2.1 | K11: May | L11: 0.5 | M11: 22.5 | N11: 0.4 | O11: 0.9
A12: Jun | B12: 20 | C12: 1.1 | D12: 11.3 | E12: 10 | F12: 1 | G12: 1.2 | K12: Jun | L12: 0.4 | M12: 3.9 | N12: 0.3 | O12: 0.4
A13: Jul | B13: 20 | C13: 1.6 | D13: 13.8 | E13: 10 | F13: 1.4 | G13: 2.7 | K13: Jul | L13: 0.9 | M13: 6.3 | N13: 0.8 | O13: 1.1 | Q13: Maximum: for 1/2 hourly and daily periods use the highest value across all operational combustion lines for the month
A14: Aug | B14: 20 | C14: 1.3 | D14: 23.1 | E14: 10 | F14: 1.1 | G14: 3.4 | K14: Aug | L14: 0.9 | M14: 12.9 | N14: 0.8 | O14: 2.7
A15: Sep | B15: 20 | C15: 1.2 | D15: 24.8 | E15: 10 | F15: 1.2 | G15: 1.6 | K15: Sep | L15: 0.8 | M15: 15.5 | N15: 0.8 | O15: 1.1
A16: Oct | B16: 20 | C16: 1.7 | D16: 27.8 | E16: 10 | F16: 1.6 | G16: 4 | K16: Oct | L16: 1 | M16: 16.4 | N16: 0.9 | O16: 1.9
A17: Nov | B17: 20 | C17: 1.7 | D17: 26.9 | E17: 10 | F17: 1.6 | G17: 2.7 | K17: Nov | L17: 1 | M17: 21 | N17: 0.9 | O17: 1.6
A18: Dec | B18: 20 | C18: 1.7 | D18: 54.3 | E18: 10 | F18: 1.6 | G18: 2.5 | K18: Dec | L18: 0.9 | M18: 15.7 | N18: 0.9 | O18: 1.2
K19: Annual | L19: =AVERAGE(L7:L18) -> 0.6833333333 | M19: =MAX(M7:M18) -> 22.5 | N19: =AVERAGE(N7:N18) -> 0.625 | O19: =MAX(O7:O18) -> 2.7
J21: =+A6 -> 2023 | K21: mg/Nm3 | L21: Monthly 1/2 hourly mean | M21: Monthly 1/2 hourly maximum | N21: Monthly daily mean | O21: Monthly daily maximum
J22: A2 | K22: Jan | L22: 0.8 | M22: 9.8 | N22: 0.8 | O22: 1.3
K23: Feb | L23: 0.7 | M23: 14.4 | N23: 0.7 | O23: 1
K24: Mar | L24: 0.7 | M24: 5.8 | N24: 0.7 | O24: 0.9
K25: Apr | L25: 0.7 | M25: 19.7 | N25: 0.6 | O25: 1.4
K26: May | L26: 0.8 | M26: 21.3 | N26: 0.8 | O26: 1.2
K27: Jun | L27: 0.7 | M27: 7.4 | N27: 0.7 | O27: 0.8
K28: Jul | L28: 0.7 | M28: 7.5 | N28: 0.6 | O28: 1.6
K29: Aug | L29: 0.4 | M29: 10.2 | N29: 0.3 | O29: 0.7
K30: Sep | L30: 0.4 | M30: 9.3 | N30: 0.4 | O30: 0.5
K31: Oct | L31: 0.7 | M31: 11.4 | N31: 0.7 | O31: 2.1
K32: Nov | L32: 0.7 | M32: 5.9 | N32: 0.7 | O32: 1.1
K33: Dec | L33: 0.8 | M33: 38.6 | N33: 0.7 | O33: 1.3
K34: Annual | L34: =AVERAGE(L22:L33) -> 0.675 | M34: =MAX(M22:M33) -> 38.6 | N34: =AVERAGE(N22:N33) -> 0.6416666667 | O34: =MAX(O22:O33) -> 2.1
J36: =+A6 -> 2023 | K36: mg/Nm3 | L36: Monthly 1/2 hourly mean | M36: Monthly 1/2 hourly maximum | N36: Monthly daily mean | O36: Monthly daily maximum
J37: A3 | K37: Jan
K38: Feb
K39: Mar
K40: Apr
K41: May
K42: Jun
K43: Jul
K44: Aug
K45: Sep
K46: Oct
K47: Nov
A48: Comments : | K48: Dec
K49: Annual | L49: =AVERAGE(L37:L48) ->  | M49: =MAX(M37:M48) -> 0 | N49: =AVERAGE(N37:N48) ->  | O49: =MAX(O37:O48) -> 0
J51: =+A6 -> 2023 | K51: mg/Nm3 | L51: Monthly 1/2 hourly mean | M51: Monthly 1/2 hourly maximum | N51: Monthly daily mean | O51: Monthly daily maximum
J52: A4 | K52: Jan
K53: Feb
K54: Mar
K55: Apr
K56: May
K57: Jun
K58: Jul
K59: Aug
K60: Sep
K61: Oct
K62: Nov
K63: Dec
K64: Annual | L64: =AVERAGE(L52:L63) ->  | M64: =MAX(M52:M63) -> 0 | N64: =AVERAGE(N52:N63) ->  | O64: =MAX(O52:O63) -> 0
J66: =+A6 -> 2023 | K66: mg/Nm3 | L66: Monthly 1/2 hourly mean | M66: Monthly 1/2 hourly maximum | N66: Monthly daily mean | O66: Monthly daily maximum
J67: A5 | K67: Jan
K68: Feb
K69: Mar
K70: Apr
K71: May
K72: Jun
K73: Jul
K74: Aug
K75: Sep
K76: Oct
K77: Nov
K78: Dec
K79: Annual | L79: =AVERAGE(L67:L78) ->  | M79: =MAX(M67:M78) -> 0 | N79: =AVERAGE(N67:N78) ->  | O79: =MAX(O67:O78) -> 0

Sheet Particulates
A1: =+'Cover Page'!$B$29 -> Annual Performance Report 2023 | E1: =+'Cover Page'!$B$33 -> Eastcroft Energy from Waste Plant
A3: Monitoring of Particulate matter emissions | D3: Whole Installation | G3: See Notes in Cell Q3 | J3: =+A3 -> Monitoring of Particulate matter emissions | N3: Per Combustion Line | Q3: Notes:
Q4: User to add logic to complete Whole installation, Table A5:G18. From the data in Per Combustion Line, Table J6:O79, subject to No. of lines installed
A5: mg/Nm3 | B5: 1/2 Hourly Reference Periods | E5: Daily Reference Periods
A6: =+'Cover Page'!C39 -> 2023 | B6: 1/2 hourly PM ELV | C6: Monthly 1/2 hourly mean | D6: Highest 1/2 hourly maximum | E6: Daily PM ELV* | F6: Monthly daily mean | G6: Highest daily maximum | J6: =+A6 -> 2023 | K6: mg/Nm3 | L6: Monthly 1/2 hourly mean | M6: Monthly 1/2 hourly maximum | N6: Monthly daily mean | O6: Monthly daily maximum
A7: Jan | B7: 30 | C7: 0.5 | D7: 3.3 | E7: 10 | F7: 0.5 | G7: 0.8 | J7: A1 | K7: Jan | L7: 0.3 | M7: 2 | N7: 0.3 | O7: 0.5
A8: Feb | B8: 30 | C8: 0.5 | D8: 8.7 | E8: 10 | F8: 0.4 | G8: 0.7 | K8: Feb | L8: 0.3 | M8: 2.4 | N8: 0.3 | O8: 0.4
A9: Mar | B9: 30 | C9: 0.5 | D9: 0.9 | E9: 10 | F9: 0.4 | G9: 0.6 | K9: Mar | L9: 0.3 | M9: 0.6 | N9: 0.3 | O9: 0.4 | Q9: Whole Installation table A5:G18:
A10: Apr | B10: 30 | C10: 0.6 | D10: 4.6 | E10: 10 | F10: 0.5 | G10: 0.7 | K10: Apr | L10: 0.4 | M10: 1.8 | N10: 0.4 | O10: 0.5 | Q10: Mean: for 1/2 hourly and daily periods calculate mean of values across all operational combustion lines for the month
A11: May | B11: 30 | C11: 0.6 | D11: 8.6 | E11: 10 | F11: 0.5 | G11: 1.1 | K11: May | L11: 0.4 | M11: 4.4 | N11: 0.4 | O11: 0.7
A12: Jun | B12: 30 | C12: 0.6 | D12: 1.3 | E12: 10 | F12: 0.4 | G12: 0.6 | K12: Jun | L12: 0.4 | M12: 0.8 | N12: 0.3 | O12: 0.4
A13: Jul | B13: 30 | C13: 0.4 | D13: 4.2 | E13: 10 | F13: 0.2 | G13: 0.6 | K13: Jul | L13: 0.2 | M13: 0.9 | N13: 0.1 | O13: 0.3 | Q13: Maximum: for 1/2 hourly and daily periods use the highest value across all operational combustion lines for the month
A14: Aug | B14: 30 | C14: 0.5 | D14: 3.5 | E14: 10 | F14: 0.3 | G14: 0.6 | K14: Aug | L14: 0.3 | M14: 3.1 | N14: 0.2 | O14: 0.4
A15: Sep | B15: 30 | C15: 0.5 | D15: 1 | E15: 10 | F15: 0.4 | G15: 0.5 | K15: Sep | L15: 0.3 | M15: 0.6 | N15: 0.3 | O15: 0.3
A16: Oct | B16: 30 | C16: 0.6 | D16: 9.1 | E16: 10 | F16: 0.5 | G16: 1 | K16: Oct | L16: 0.3 | M16: 2.9 | N16: 0.3 | O16: 0.5
A17: Nov | B17: 30 | C17: 0.8 | D17: 8.1 | E17: 10 | F17: 0.7 | G17: 1.1 | K17: Nov | L17: 0.4 | M17: 3.2 | N17: 0.4 | O17: 0.6
A18: Dec | B18: 30 | C18: 1 | D18: 4.9 | E18: 5 | F18: 1 | G18: 1.4 | K18: Dec | L18: 0.4 | M18: 0.8 | N18: 0.4 | O18: 0.5
E19: * ELV reduced to 5 mg/Nm3 on 3 December 2023 | K19: Annual | L19: =AVERAGE(L7:L18) -> 0.3333333333 | M19: =MAX(M7:M18) -> 4.4 | N19: =AVERAGE(N7:N18) -> 0.3083333333 | O19: =MAX(O7:O18) -> 0.7
J21: =+A6 -> 2023 | K21: mg/Nm3 | L21: Monthly 1/2 hourly mean | M21: Monthly 1/2 hourly maximum | N21: Monthly daily mean | O21: Monthly daily maximum
J22: A2 | K22: Jan | L22: 0.2 | M22: 1.3 | N22: 0.2 | O22: 0.3
K23: Feb | L23: 0.2 | M23: 6.3 | N23: 0.1 | O23: 0.3
K24: Mar | L24: 0.2 | M24: 0.3 | N24: 0.1 | O24: 0.2
K25: Apr | L25: 0.2 | M25: 2.8 | N25: 0.1 | O25: 0.2
K26: May | L26: 0.2 | M26: 4.2 | N26: 0.1 | O26: 0.4
K27: Jun | L27: 0.2 | M27: 0.5 | N27: 0.1 | O27: 0.2
K28: Jul | L28: 0.2 | M28: 3.3 | N28: 0.1 | O28: 0.3
K29: Aug | L29: 0.2 | M29: 0.4 | N29: 0.1 | O29: 0.2
K30: Sep | L30: 0.2 | M30: 0.4 | N30: 0.1 | O30: 0.2
K31: Oct | L31: 0.3 | M31: 6.2 | N31: 0.2 | O31: 0.5
K32: Nov | L32: 0.4 | M32: 4.9 | N32: 0.3 | O32: 0.5
K33: Dec | L33: 0.6 | M33: 4.1 | N33: 0.6 | O33: 0.9
K34: Annual | L34: =AVERAGE(L22:L33) -> 0.2583333333 | M34: =MAX(M22:M33) -> 6.3 | N34: =AVERAGE(N22:N33) -> 0.175 | O34: =MAX(O22:O33) -> 0.9
J36: =+A6 -> 2023 | K36: mg/Nm3 | L36: Monthly 1/2 hourly mean | M36: Monthly 1/2 hourly maximum | N36: Monthly daily mean | O36: Monthly daily maximum
J37: A3 | K37: Jan
K38: Feb
K39: Mar
K40: Apr
K41: May
K42: Jun
K43: Jul
K44: Aug
K45: Sep
K46: Oct
K47: Nov
A48: Comments : | K48: Dec
K49: Annual | L49: =AVERAGE(L37:L48) ->  | M49: =MAX(M37:M48) -> 0 | N49: =AVERAGE(N37:N48) ->  | O49: =MAX(O37:O48) -> 0
J51: =+A6 -> 2023 | K51: mg/Nm3 | L51: Monthly 1/2 hourly mean | M51: Monthly 1/2 hourly maximum | N51: Monthly daily mean | O51: Monthly daily maximum
J52: A4 | K52: Jan
K53: Feb
K54: Mar
K55: Apr
K56: May
K57: Jun
K58: Jul
K59: Aug
K60: Sep
K61: Oct
K62: Nov
K63: Dec
K64: Annual | L64: =AVERAGE(L52:L63) ->  | M64: =MAX(M52:M63) -> 0 | N64: =AVERAGE(N52:N63) ->  | O64: =MAX(O52:O63) -> 0
J66: =+A6 -> 2023 | K66: mg/Nm3 | L66: Monthly 1/2 hourly mean | M66: Monthly 1/2 hourly maximum | N66: Monthly daily mean | O66: Monthly daily maximum
J67: A5 | K67: Jan
K68: Feb
K69: Mar
K70: Apr
K71: May
K72: Jun
K73: Jul
K74: Aug
K75: Sep
K76: Oct
K77: Nov
K78: Dec
K79: Annual | L79: =AVERAGE(L67:L78) ->  | M79: =MAX(M67:M78) -> 0 | N79: =AVERAGE(N67:N78) ->  | O79: =MAX(O67:O78) -> 0

Sheet CO 0.5 hourly
A1: =+'Cover Page'!$B$29 -> Annual Performance Report 2023 | E1: =+'Cover Page'!$B$33 -> Eastcroft Energy from Waste Plant
A3: Monitoring of Carbon Monoxide (half hourly) | D3: Whole Installation | G3: See Notes in Cell Q3 | J3: =+A3 -> Monitoring of Carbon Monoxide (half hourly) | N3: Per Combustion Line | Q3: Notes:
A5: Please complete this tab for your plant if you have 1/2 hourly CO ELVs; otherwise, leave it blank and complete the CO 95% 10 min tab
Q7: User to add logic to complete Whole installation, Table A5:G18. From the data in Per Combustion Line, Table J6:O79, subject to No. of lines installed
A8: mg/Nm3 | B8: 1/2 Hourly Reference Periods | E8: Daily Reference Periods
A9: =+'Cover Page'!C39 -> 2023 | B9: 1/2 hourly CO ELV | C9: Monthly 1/2 hourly mean | D9: Highest 1/2 hourly maximum | E9: Daily CO ELV | F9: Monthly daily mean | G9: Highest daily maximum | J9: =+A9 -> 2023 | K9: mg/Nm3 | L9: Monthly 1/2 hourly mean | M9: Monthly 1/2 hourly maximum | N9: Monthly daily mean | O9: Monthly daily maximum
A10: Jan | B10: 100 | E10: 50 | J10: A1 | K10: Jan
A11: Feb | B11: =+B10 -> 100 | E11: =+E10 -> 50 | K11: Feb
A12: Mar | B12: =+B11 -> 100 | E12: =+E11 -> 50 | K12: Mar | Q12: Whole Installation table A5:G18:
A13: Apr | B13: 100 | E13: 50 | K13: Apr | Q13: Mean: for 1/2 hourly and daily periods calculate mean of values across all operational combustion lines for the month
A14: May | B14: 100 | E14: 50 | K14: May
A15: Jun | B15: 100 | E15: 50 | K15: Jun
A16: Jul | B16: 100 | E16: 50 | K16: Jul | Q16: Maximum: for 1/2 hourly and daily periods use the highest value across all operational combustion lines for the month
A17: Aug | B17: 100 | E17: 50 | K17: Aug
A18: Sep | B18: 100 | E18: 50 | K18: Sep
A19: Oct | B19: 100 | E19: 50 | K19: Oct
A20: Nov | B20: 100 | E20: 50 | K20: Nov
A21: Dec | B21: 100 | E21: 50 | K21: Dec
K22: Annual | L22: =AVERAGE(L10:L21) ->  | M22: =MAX(M10:M21) -> 0 | N22: =AVERAGE(N10:N21) ->  | O22: =MAX(O10:O21) -> 0
J24: =+A9 -> 2023 | K24: mg/Nm3 | L24: Monthly 1/2 hourly mean | M24: Monthly 1/2 hourly maximum | N24: Monthly daily mean | O24: Monthly daily maximum
J25: A2 | K25: Jan
K26: Feb
K27: Mar
K28: Apr
K29: May
K30: Jun
K31: Jul
K32: Aug
K33: Sep
K34: Oct
K35: Nov
K36: Dec
K37: Annual | L37: =AVERAGE(L25:L36) ->  | M37: =MAX(M25:M36) -> 0 | N37: =AVERAGE(N25:N36) ->  | O37: =MAX(O25:O36) -> 0
J39: =+A9 -> 2023 | K39: mg/Nm3 | L39: Monthly 1/2 hourly mean | M39: Monthly 1/2 hourly maximum | N39: Monthly daily mean | O39: Monthly daily maximum
J40: A3 | K40: Jan
K41: Feb
K42: Mar
K43: Apr
K44: May
K45: Jun
K46: Jul
K47: Aug
K48: Sep
K49: Oct
K50: Nov
A51: Comments : | K51: Dec
K52: Annual | L52: =AVERAGE(L40:L51) ->  | M52: =MAX(M40:M51) -> 0 | N52: =AVERAGE(N40:N51) ->  | O52: =MAX(O40:O51) -> 0
J54: =+A9 -> 2023 | K54: mg/Nm3 | L54: Monthly 1/2 hourly mean | M54: Monthly 1/2 hourly maximum | N54: Monthly daily mean | O54: Monthly daily maximum
J55: A4 | K55: Jan
K56: Feb
K57: Mar
K58: Apr
K59: May
K60: Jun
K61: Jul
K62: Aug
K63: Sep
K64: Oct
K65: Nov
K66: Dec
K67: Annual | L67: =AVERAGE(L55:L66) ->  | M67: =MAX(M55:M66) -> 0 | N67: =AVERAGE(N55:N66) ->  | O67: =MAX(O55:O66) -> 0
J69: =+A9 -> 2023 | K69: mg/Nm3 | L69: Monthly 1/2 hourly mean | M69: Monthly 1/2 hourly maximum | N69: Monthly daily mean | O69: Monthly daily maximum
J70: A5 | K70: Jan
K71: Feb
K72: Mar
K73: Apr
K74: May
K75: Jun
K76: Jul
K77: Aug
K78: Sep
K79: Oct
K80: Nov
K81: Dec
K82: Annual | L82: =AVERAGE(L70:L81) ->  | M82: =MAX(M70:M81) -> 0 | N82: =AVERAGE(N70:N81) ->  | O82: =MAX(O70:O81) -> 0

Sheet CO 95% 10 min
A1: =+'Cover Page'!$B$29 -> Annual Performance Report 2023 | E1: =+'Cover Page'!$B$33 -> Eastcroft Energy from Waste Plant
A3: Monitoring of Carbon Monoxide (10-minute avg) | E3: Whole Installation | H3: See Notes in Cell S3 | J3: =+A3 -> Monitoring of Carbon Monoxide (10-minute avg) | O3: Per Combustion Line | Q3: Notes: | S3: Notes:
A5: Please complete this tab for your plant if you have 10-minute average CO ELVs; otherwise, leave it blank and complete the CO 0.5 hourly tab
S7: User to add logic to complete Whole installation, Table A5:H18. From the data in Per Combustion Line, Table K6:Q79, subject to No. of lines installed
A8: mg/Nm3 | B8: 10-minute Reference Periods | F8: Daily Reference Periods
A9: =+'Cover Page'!C39 -> 2023 | B9: 95%ile 10-min avg CO ELV | C9: 95%ile 10-min avg maximum | D9: Monthly CO 10-min avg mean | E9: 10-min avg maximum | F9: Daily CO ELV | G9: Monthly daily mean | H9: Highest daily maximum | K9: =+A9 -> 2023 | L9: mg/Nm3 | M9: 95%ile 10-min avg maximum | N9: Monthly CO 10-min avg mean | O9: 10-min avg maximum | P9: Monthly daily mean | Q9: Monthly daily maximum
A10: Jan | B10: 150 | C10: 300 | D10: 13.9 | E10: 522.2 | F10: 50 | G10: 13.9 | H10: 522.2 | K10: A1 | L10: Jan | M10: 150 | N10: 5.3 | O10: 222.7 | P10: 5.2 | Q10: 6.9
A11: Feb | B11: =+B10 -> 150 | C11: 300 | D11: 10.4 | E11: 806.7 | F11: =+F10 -> 50 | G11: 10.4 | H11: 806.7 | L11: Feb | M11: 150 | N11: 4.2 | O11: 270.7 | P11: 4.2 | Q11: 5.9
A12: Mar | B12: =+B11 -> 150 | C12: 300 | D12: 12.4 | E12: 376.8 | F12: =+F11 -> 50 | G12: 12.4 | H12: 376.8 | L12: Mar | M12: 150 | N12: 4.5 | O12: 240 | P12: 4.5 | Q12: 8.1 | S12: Whole Installation table A5:H18:
A13: Apr | B13: 150 | C13: 300 | D13: 12.4 | E13: 828.8 | F13: 50 | G13: 12.4 | H13: 828.8 | L13: Apr | M13: 150 | N13: 4.4 | O13: 171.7 | P13: 4.4 | Q13: 6.4 | S13: Mean: for 10-min and daily periods use average of all operational combustion lines.
A14: May | B14: 150 | C14: 300 | D14: 12.9 | E14: 692.5 | F14: 50 | G14: 12.9 | H14: 692.5 | L14: May | M14: 150 | N14: 5 | O14: 436.2 | P14: 5 | Q14: 6.6
A15: Jun | B15: 150 | C15: 300 | D15: 13.3 | E15: 218.8 | F15: 50 | G15: 13.3 | H15: 218.8 | L15: Jun | M15: 150 | N15: 4.4 | O15: 58.9 | P15: 4.3 | Q15: 5.8
A16: Jul | B16: 150 | C16: 300 | D16: 13.2 | E16: 750 | F16: 50 | G16: 13.2 | H16: 750 | L16: Jul | M16: 150 | N16: 7.1 | O16: 462.3 | P16: 6.7 | Q16: 15.5 | S16: Maximum: for 10-min and daily periods use the highest of all operational combustion lines in any month.
A17: Aug | B17: 150 | C17: 300 | D17: 10.9 | E17: 622.8 | F17: 50 | G17: 10.9 | H17: 622.8 | L17: Aug | M17: 150 | N17: 6.8 | O17: 446 | P17: 6.8 | Q17: 13.2
A18: Sep | B18: 150 | C18: 300 | D18: 10.8 | E18: 829.4 | F18: 50 | G18: 10.8 | H18: 829.4 | L18: Sep | M18: 150 | N18: 6.1 | O18: 579.7 | P18: 6.1 | Q18: 10.9
A19: Oct | B19: 150 | C19: 300 | D19: 16.8 | E19: 428.7 | F19: 50 | G19: 16.8 | H19: 428.7 | L19: Oct | M19: 150 | N19: 8 | O19: 225.7 | P19: 8 | Q19: 12.7
A20: Nov | B20: 150 | C20: 300 | D20: 16.5 | E20: 692.8 | F20: 50 | G20: 16.5 | H20: 692.8 | L20: Nov | M20: 150 | N20: 9 | O20: 544.9 | P20: 9 | Q20: 17
A21: Dec | B21: 150 | C21: 300 | D21: 15.3 | E21: 854.7 | F21: 50 | G21: 15.3 | H21: 854.7 | L21: Dec | M21: 150 | N21: 7.5 | O21: 288.8 | P21: 7.4 | Q21: 10.2
L22: Annual | M22: =AVERAGE(M10:M21) -> 150 | O22: =MAX(O10:O21) -> 579.7 | P22: =AVERAGE(P10:P21) -> 5.966666667 | Q22: =MAX(Q10:Q21) -> 17
K24: =+A9 -> 2023 | L24: mg/Nm3 | M24: 95%ile 10-min avg maximum | N24: Monthly CO 10-min avg mean | O24: 10-min avg maximum | P24: Monthly daily mean | Q24: Monthly daily maximum
K25: A2 | L25: Jan | M25: 150 | N25: 8.6 | O25: 299.5 | P25: 8.6 | Q25: 19
L26: Feb | M26: 150 | N26: 6.2 | O26: 536 | P26: 6.1 | Q26: 12.2
L27: Mar | M27: 150 | N27: 7.9 | O27: 136.8 | P27: 7.9 | Q27: 10.8
L28: Apr | M28: 150 | N28: 8 | O28: 657.1 | P28: 7.9 | Q28: 14.1
L29: May | M29: 150 | N29: 7.9 | O29: 256.3 | P29: 7.9 | Q29: 11.2
L30: Jun | M30: 150 | N30: 8.9 | O30: 159.9 | P30: 8.9 | Q30: 10.7
L31: Jul | M31: 150 | N31: 6.1 | O31: 287.7 | P31: 5.3 | Q31: 15.5
L32: Aug | M32: 150 | N32: 4.1 | O32: 176.8 | P32: 4 | Q32: 6.5
L33: Sep | M33: 150 | N33: 4.7 | O33: 249.7 | P33: 4.6 | Q33: 8.1
L34: Oct | M34: 150 | N34: 8.8 | O34: 203 | P34: 8.6 | Q34: 16.3
L35: Nov | M35: 150 | N35: 7.5 | O35: 147.9 | P35: 7.4 | Q35: 10.4
L36: Dec | M36: 150 | N36: 7.8 | O36: 565.9 | P36: 7.8 | Q36: 12
L37: Annual | M37: =AVERAGE(M25:M36) -> 150 | O37: =MAX(O25:O36) -> 657.1 | P37: =AVERAGE(P25:P36) -> 7.083333333 | Q37: =MAX(Q25:Q36) -> 19
K39: =+A9 -> 2023 | L39: mg/Nm3 | M39: 95%ile 10-min avg maximum | N39: Monthly CO 10-min avg mean | O39: 10-min avg maximum | P39: Monthly daily mean | Q39: Monthly daily maximum
K40: A3 | L40: Jan
L41: Feb
L42: Mar
L43: Apr
L44: May
L45: Jun
L46: Jul
L47: Aug
L48: Sep
L49: Oct
L50: Nov
A51: Comments : | L51: Dec
A52: Environment Agency explanatory note: The 10-minute average ELV is based on the “95th percentile”. In this case this means that 95% of the 10 minute averages in the relevant 24-hour period (i.e. 137) must be below 150 mg/Nm3, and 5% (i.e. 7) are allowed to be any value above 150 mg/Nm3. Whilst we expect operators to minimise CO emissions at all times, it is perfectly acceptable for the value of the maximum 10-minute average to be above 150 mg/Nm3, provided the 95th percentile ELV has been met for that period. | L52: Annual | M52: =AVERAGE(M40:M51) ->  | O52: =MAX(O40:O51) -> 0 | P52: =AVERAGE(P40:P51) ->  | Q52: =MAX(Q40:Q51) -> 0
K54: =+A9 -> 2023 | L54: mg/Nm3 | M54: 95%ile 10-min avg maximum | N54: Monthly CO 10-min avg mean | O54: 10-min avg maximum | P54: Monthly daily mean | Q54: Monthly daily maximum
K55: A4 | L55: Jan
L56: Feb
L57: Mar
L58: Apr
L59: May
L60: Jun
L61: Jul
L62: Aug
L63: Sep
L64: Oct
L65: Nov
L66: Dec
L67: Annual | M67: =AVERAGE(M55:M66) ->  | O67: =MAX(O55:O66) -> 0 | P67: =AVERAGE(P55:P66) ->  | Q67: =MAX(Q55:Q66) -> 0
K69: =+A9 -> 2023 | L69: mg/Nm3 | M69: 95%ile 10-min avg maximum | N69: Monthly CO 10-min avg mean | O69: 10-min avg maximum | P69: Monthly daily mean | Q69: Monthly daily maximum
K70: A5 | L70: Jan
L71: Feb
L72: Mar
L73: Apr
L74: May
L75: Jun
L76: Jul
L77: Aug
L78: Sep
L79: Oct
L80: Nov
L81: Dec
L82: Annual | M82: =AVERAGE(M70:M81) ->  | O82: =MAX(O70:O81) -> 0 | P82: =AVERAGE(P70:P81) ->  | Q82: =MAX(Q70:Q81) -> 0

Sheet NH3
A1: =+'Cover Page'!$B$29 -> Annual Performance Report 2023 | E1: =+'Cover Page'!$B$33 -> Eastcroft Energy from Waste Plant
A3: Monitoring of Ammnonia emissions | D3: Whole Installation | G3: See Notes in Cell Q3 | J3: =+A3 -> Monitoring of Ammnonia emissions | N3: Per Combustion Line | Q3: Notes:
Q4: User to add logic to complete Whole installation, Table A5:G18. From the data in Per Combustion Line, Table J6:O79, subject to No. of lines installed
A5: mg/Nm3 | B5: 1/2 Hourly Reference Periods | E5: Daily Reference Periods
A6: =+'Cover Page'!C39 -> 2023 | B6: 1/2 hourly NH3 ELV | C6: Monthly 1/2 hourly mean | D6: Highest 1/2 hourly maximum | E6: Daily NH3 ELV* | F6: Monthly daily mean | G6: Highest daily maximum | J6: =+A6 -> 2023 | K6: mg/Nm3 | L6: Monthly 1/2 hourly mean | M6: Monthly 1/2 hourly maximum | N6: Monthly daily mean | O6: Monthly daily maximum
A7: Jan | B7: None | C7: 1.9 | D7: 9 | E7: None | F7: 1.9 | G7: 2.7 | J7: A1 | K7: Jan | L7: 1.2 | M7: 4.4 | N7: 1.2 | O7: 1.6
A8: Feb | B8: =+B7 -> None | C8: 1.7 | D8: 12 | E8: None | F8: 1.6 | G8: 3 | K8: Feb | L8: 0.9 | M8: 3.6 | N8: 0.9 | O8: 1.5
A9: Mar | B9: =+B8 -> None | C9: 1.4 | D9: 9.5 | E9: None | F9: 1.2 | G9: 2.4 | K9: Mar | L9: 0.7 | M9: 4 | N9: 0.6 | O9: 1.2 | Q9: Whole Installation table A5:G18:
A10: Apr | B10: None | C10: 3 | D10: 17.6 | E10: None | F10: 3 | G10: 5.3 | K10: Apr | L10: 1.6 | M10: 6.3 | N10: 1.6 | O10: 2.2 | Q10: Mean: for 1/2 hourly and daily periods calculate mean of values across all operational combustion lines for the month
A11: May | B11: None | C11: 3.3 | D11: 13.1 | E11: None | F11: 3.3 | G11: 4.7 | K11: May | L11: 1.5 | M11: 5.2 | N11: 1.5 | O11: 2.3
A12: Jun | B12: None | C12: 1.4 | D12: 4.7 | E12: None | F12: 1.2 | G12: 1.6 | K12: Jun | L12: 0.5 | M12: 1.4 | N12: 0.4 | O12: 0.5
A13: Jul | B13: None | C13: 8.3 | D13: 50.4 | E13: None | F13: 7.7 | G13: 31.9 | K13: Jul | L13: 3 | M13: 19.7 | N13: 2.9 | O13: 14.4 | Q13: Maximum: for 1/2 hourly and daily periods use the highest value across all operational combustion lines for the month
A14: Aug | B14: None | C14: 2.1 | D14: 19.2 | E14: None | F14: 2.1 | G14: 4.6 | K14: Aug | L14: 1 | M14: 3.3 | N14: 1 | O14: 1.4
A15: Sep | B15: None | C15: 1.8 | D15: 12.4 | E15: None | F15: 1.6 | G15: 2.5 | K15: Sep | L15: 0.9 | M15: 5.4 | N15: 0.8 | O15: 1.2
A16: Oct | B16: None | C16: 5.2 | D16: 70 | E16: None | F16: 5 | G16: 13.2 | K16: Oct | L16: 1.4 | M16: 16.7 | N16: 1.2 | O16: 2.1
A17: Nov | B17: None | C17: 5.3 | D17: 39.1 | E17: None | F17: 5.3 | G17: 10.5 | K17: Nov | L17: 2.6 | M17: 18.2 | N17: 2.6 | O17: 4.6
A18: Dec | B18: None | C18: 3.8 | D18: 22.5 | E18: 15 | F18: 3.8 | G18: 6.3 | K18: Dec | L18: 1.7 | M18: 11.3 | N18: 1.7 | O18: 2.8
E19: * ELV came into force on 3 December 2023 | K19: Annual | L19: =AVERAGE(L7:L18) -> 1.416666667 | M19: =MAX(M7:M18) -> 19.7 | N19: =AVERAGE(N7:N18) -> 1.366666667 | O19: =MAX(O7:O18) -> 14.4
J21: =+A6 -> 2023 | K21: mg/Nm3 | L21: Monthly 1/2 hourly mean | M21: Monthly 1/2 hourly maximum | N21: Monthly daily mean | O21: Monthly daily maximum
J22: A2 | K22: Jan | L22: 0.7 | M22: 4.6 | N22: 0.7 | O22: 1.1
K23: Feb | L23: 0.8 | M23: 8.4 | N23: 0.7 | O23: 1.5
K24: Mar | L24: 0.7 | M24: 5.5 | N24: 0.6 | O24: 1.2
K25: Apr | L25: 1.4 | M25: 11.3 | N25: 1.4 | O25: 3.1
K26: May | L26: 1.8 | M26: 7.9 | N26: 1.8 | O26: 2.4
K27: Jun | L27: 0.9 | M27: 3.3 | N27: 0.8 | O27: 1.1
K28: Jul | L28: 5.3 | M28: 30.7 | N28: 4.8 | O28: 17.5
K29: Aug | L29: 1.1 | M29: 15.9 | N29: 1.1 | O29: 3.2
K30: Sep | L30: 0.9 | M30: 7 | N30: 0.8 | O30: 1.3
K31: Oct | L31: 3.8 | M31: 53.3 | N31: 3.8 | O31: 11.1
K32: Nov | L32: 2.7 | M32: 20.9 | N32: 2.7 | O32: 5.9
K33: Dec | L33: 2.1 | M33: 11.2 | N33: 2.1 | O33: 3.5
K34: Annual | L34: =AVERAGE(L22:L33) -> 1.85 | M34: =MAX(M22:M33) -> 53.3 | N34: =AVERAGE(N22:N33) -> 1.775 | O34: =MAX(O22:O33) -> 17.5
J36: =+A6 -> 2023 | K36: mg/Nm3 | L36: Monthly 1/2 hourly mean | M36: Monthly 1/2 hourly maximum | N36: Monthly daily mean | O36: Monthly daily maximum
J37: A3 | K37: Jan
K38: Feb
K39: Mar
K40: Apr
K41: May
K42: Jun
K43: Jul
K44: Aug
K45: Sep
K46: Oct
K47: Nov
A48: Comments : | K48: Dec
A49: An indicated ELV value of zero in the table above means that no ammonia limit is/was set in the permit. | K49: Annual | L49: =AVERAGE(L37:L48) ->  | M49: =MAX(M37:M48) -> 0 | N49: =AVERAGE(N37:N48) ->  | O49: =MAX(O37:O48) -> 0
J51: =+A6 -> 2023 | K51: mg/Nm3 | L51: Monthly 1/2 hourly mean | M51: Monthly 1/2 hourly maximum | N51: Monthly daily mean | O51: Monthly daily maximum
J52: A4 | K52: Jan
K53: Feb
K54: Mar
K55: Apr
K56: May
K57: Jun
K58: Jul
K59: Aug
K60: Sep
K61: Oct
K62: Nov
K63: Dec
K64: Annual | L64: =AVERAGE(L52:L63) ->  | M64: =MAX(M52:M63) -> 0 | N64: =AVERAGE(N52:N63) ->  | O64: =MAX(O52:O63) -> 0
J66: =+A6 -> 2023 | K66: mg/Nm3 | L66: Monthly 1/2 hourly mean | M66: Monthly 1/2 hourly maximum | N66: Monthly daily mean | O66: Monthly daily maximum
J67: A5 | K67: Jan
K68: Feb
K69: Mar
K70: Apr
K71: May
K72: Jun
K73: Jul
K74: Aug
K75: Sep
K76: Oct
K77: Nov
K78: Dec
K79: Annual | L79: =AVERAGE(L67:L78) ->  | M79: =MAX(M67:M78) -> 0 | N79: =AVERAGE(N67:N78) ->  | O79: =MAX(O67:O78) -> 0
